Workbook

Sheet INGRESO DE DATOS
O2: 24 years | P2: FALSE
O4: Descuento 24 años (por edad)
O5: age | P5: Discount (%) | Q5: Parameter | S5: Type | T5: Nuevo Negocio | V5: Región | W5: 2
O6: 24 | P6: 35 | Q6: =1-P6/100 -> 0.65 | T6: Renovación | W6: 3
O7: 25 | P7: 30 | Q7: =1-P7/100 -> 0.7 | W7: 4
O8: 26 | P8: 25 | Q8: 0.75 | W8: 5
O9: 27 | P9: 20 | Q9: 0.8 | W9: 6
O10: 28 | P10: 15 | Q10: 0.85 | W10: 8
O11: 29 | P11: 6 | Q11: 0.94 | W11: 9
O12: All ages | P12: 0 | Q12: 1 | W12: Bolivia
S13: Type selected | T13: 2 | V13: Selección | W13: 8
V14: Región | W14: =IF(W13=1,"2",IF(W13=2,3,IF(W13=3,4,IF(W13=4,5,IF(W13=4,5,IF(W13=5,6,IF(W13=6,8,IF(W13=7,9,IF(W13=8,"Bolivia"))))))))) -> Bolivia
O19: Descuento de 24 años: | P19: =IF(P2,_xlfn.SWITCH(C40,O6,Q6,O7,Q7,O8,Q8,O9,Q9,O10,Q10,O11,Q11,Q12),Q12) -> 1
O24: Descuento por variante de coaseguro | P24: N/A
O30: Descuento si es nuevo negocio (ENTRADA MANUAL)
O32: New business discount
O33: Critical | P33: Diamond | Q33: Complete | R33: Advantage | S33: Secure | T33: Essential
O34: 0 | P34: 0.15 | Q34: 0.15 | R34: 0.15 | S34: 0.15 | T34: 0.15
A36: Nombre del Asegurado principal: | C36: John Doe
O37: Descuento combinado 24 años + Nuevo Negocio o Roneovaciones
A38: Número de adultos en la póliza: | C38: 2 | E38: Número de hijos en la póliza: | G38: 2
A40: Edad del titular: | C40: 32 | E40: Edad de cónyuge: | G40: 46 | O40: New business discount
O41: Critical | P41: Diamond | Q41: Complete | R41: Advantage | S41: Secure | T41: Essential
O42: =1*$P$19 -> 1 | P42: =IF($T$13=1,IF($W$14="PERU2020", (1-O51)*$P$19,(1-P34)*$P$19),1*$P$19) -> 1 | Q42: =IF($T$13=1,IF($W$14="PERU2020", (1-O54)*$P$19,(1-Q34)*$P$19),1*$P$19) -> 1 | R42: =IF($T$13=1,IF($W$14="PERU2020", (1-O57)*$P$19,(1-R34)*$P$19),1*$P$19) -> 1 | S42: =IF($T$13=1,IF($W$14="PERU2020", (1-O60)*$P$19,(1-S34)*$P$19),1*$P$19) -> 1 | T42: =IF($T$13=1,IF($W$14="PERU2020", (1-O63)*$P$19,(1-T34)*$P$19),1*$P$19) -> 1
A44: Nombre de la Agencia : | C44: Agencia
A47: Tarifas en US$ | Validas: 1 de enero de 2024
O48: DISCOUNT PERU 2020
O50: EXCLUSIVE CARE
O51: 0.51
O53: PRIVILEGE CARE
O54: 0.51
O56: ADVANTAGE CARE
O57: 0.47
O59: SECURE CARE
O60: 0.54
O62: ESSENTIAL CARE
O63: 0.54

Sheet Bupa Diamond Care (Mundial)
N1: RESUMEN DE BENEFICIOS | AA1: RESUMEN DE BENEFICIOS
G2: TRUE | H2: FALSE
A5: Cotización de Seguro Médico Internacional Bupa Diamond Care (Mundial) Tarifas en US$ | Validas: 1 de enero de 2024 | L5: REGIÓN
L7: =IF('INGRESO DE DATOS'!W14="BOLIVIA","BOLIVIA",'INGRESO DE DATOS'!W14) -> BOLIVIA
A13: Nombre del asegurado principal: | G13: =+'INGRESO DE DATOS'!$C$36 -> John Doe
A15: Broker/Agente | G15: =+'INGRESO DE DATOS'!$C$44 -> Agencia
B17: Número de Adultos en la Póliza | G17: =+'INGRESO DE DATOS'!$C$38 -> 2 | J17: Dependientes (menores de 24 años) | L17: =+'INGRESO DE DATOS'!$G$38 -> 2
J18: =IF('INGRESO DE DATOS'!$P$2=TRUE, "Cotización para dependiente de 24 años","") -> 
B19: Edad del Titular | G19: =+'INGRESO DE DATOS'!$C$40 -> 32 | J19: Edad del Cónyuge | L19: =+'INGRESO DE DATOS'!$G$40 -> 46
J21: Fecha de Cotización: | K21: =NOW() -> 2024-03-04T10:52:31.900
F29: DEDUCIBLES | G29: PLAN 1 | H29: PLAN 2 | I29: PLAN 3 | J29: PLAN 4 | K29: PLAN 5 | L29: PLAN 6
F30: Dentro del pais de residencia | G30: n/a | H30: 1000 | I30: 2000 | J30: 5000 | K30: 10000 | L30: 20000
F31: Fuera del pais de residencia | G31: n/a | H31: 2000 | I31: 3000 | J31: 5000 | K31: 10000 | L31: 20000
F34: TARIFAS ANUALES
F35: Prima de Titular | G35: n/a | H35: =VLOOKUP($G$19,Tablas!$A$9:$H$32,4,TRUE) -> 16909.9728 | I35: =VLOOKUP($G$19,Tablas!$A$9:$H$32,5,TRUE) -> 12369.8428 | J35: =VLOOKUP($G$19,Tablas!$A$9:$H$32,6,TRUE) -> 9234.2796 | K35: =VLOOKUP($G$19,Tablas!$A$9:$H$32,7,TRUE) -> 6836.6312 | L35: =VLOOKUP($G$19,Tablas!$A$9:$H$32,8,TRUE) -> 5387.2378
F36: Prima de Cónyuge | G36: n/a | H36: =IF($G$17=1,0,(VLOOKUP($L$19,Tablas!$A$9:$H$32,4,TRUE))) -> 25362.6604 | I36: =IF($G$17=1,0,(VLOOKUP($L$19,Tablas!$A$9:$H$32,5,TRUE))) -> 17492.7186 | J36: =IF($G$17=1,0,(VLOOKUP($L$19,Tablas!$A$9:$H$32,6,TRUE))) -> 13269.823 | K36: =IF($G$17=1,0,(VLOOKUP($L$19,Tablas!$A$9:$H$32,7,TRUE))) -> 9722.7746 | L36: =IF($G$17=1,0,(VLOOKUP($L$19,Tablas!$A$9:$H$32,8,TRUE))) -> 7663.0498
F37: Primas Hijos | G37: n/a | H37: =IF($L$17=0,0,(VLOOKUP($L$17,Tablas!$A$33:$H$35,4,TRUE))) -> 8566.4782 | I37: =IF($L$17=0,0,(VLOOKUP($L$17,Tablas!$A$33:$H$35,5,TRUE))) -> 6434.3412 | J37: =IF($L$17=0,0,(VLOOKUP($L$17,Tablas!$A$33:$H$35,6,TRUE))) -> 5295.2858 | K37: =IF($L$17=0,0,(VLOOKUP($L$17,Tablas!$A$33:$H$35,7,TRUE))) -> 4332.0886 | L37: =IF($L$17=0,0,(VLOOKUP($L$17,Tablas!$A$33:$H$35,8,TRUE))) -> 3373.489
F38: Rider: Complicación de Maternidad | G38: n/a | H38: =+IF($G$2=FALSE,0,Tablas!D$36) -> 0 | I38: =+IF($G$2=FALSE,0,Tablas!E$36) -> 0 | J38: =+IF($G$2=FALSE,0,Tablas!F$36) -> 258.615 | K38: =+IF($G$2=FALSE,0,Tablas!G$36) -> 258.615 | L38: =+IF($G$2=FALSE,0,Tablas!H$36) -> 258.615
F39: TOTAL PRIMA NETA | G39: n/a | H39: =SUM(H35:H38) -> 50839.1114 | I39: =SUM(I35:I38) -> 36296.9026 | J39: =SUM(J35:J38) -> 28058.0034 | K39: =SUM(K35:K38) -> 21150.1094 | L39: =SUM(L35:L38) -> 16682.3916
F40: Costo Administrativo Anual | G40: n/a | H40: =Tablas!$W$2 -> 86 | I40: =Tablas!$W$2 -> 86 | J40: =Tablas!$W$2 -> 86 | K40: =Tablas!$W$2 -> 86 | L40: =Tablas!$W$2 -> 86
F41: GRAN TOTAL: | G41: n/a | H41: =SUM(H39:H40) -> 50925.1114 | I41: =SUM(I39:I40) -> 36382.9026 | J41: =SUM(J39:J40) -> 28144.0034 | K41: =SUM(K39:K40) -> 21236.1094 | L41: =SUM(L39:L40) -> 16768.3916
F44: TARIFAS SEMESTRALES
F45: Prima de Titular | G45: n/a | H45: =VLOOKUP($G$19,Tablas!$A$44:$H$67,4,TRUE) -> 8962.285584 | I45: =VLOOKUP($G$19,Tablas!$A$44:$H$67,5,TRUE) -> 6556.016684 | J45: =VLOOKUP($G$19,Tablas!$A$44:$H$67,6,TRUE) -> 4894.168188 | K45: =VLOOKUP($G$19,Tablas!$A$44:$H$67,7,TRUE) -> 3623.414536 | L45: =VLOOKUP($G$19,Tablas!$A$44:$H$67,8,TRUE) -> 2855.236034
F46: Prima de Cónyuge | G46: n/a | H46: =IF($G$17=1,0,(VLOOKUP($L$19,Tablas!$A$44:$H$67,4,TRUE))) -> 13442.21001 | I46: =IF($G$17=1,0,(VLOOKUP($L$19,Tablas!$A$44:$H$67,5,TRUE))) -> 9271.140858 | J46: =IF($G$17=1,0,(VLOOKUP($L$19,Tablas!$A$44:$H$67,6,TRUE))) -> 7033.00619 | K46: =IF($G$17=1,0,(VLOOKUP($L$19,Tablas!$A$44:$H$67,7,TRUE))) -> 5153.070538 | L46: =IF($G$17=1,0,(VLOOKUP($L$19,Tablas!$A$44:$H$67,8,TRUE))) -> 4061.416394
F47: Primas Hijos | G47: n/a | H47: =IF($L$17=0,0,(VLOOKUP($L$17,Tablas!$A$68:$H$70,4,TRUE))) -> 4540.233446 | I47: =IF($L$17=0,0,(VLOOKUP($L$17,Tablas!$A$68:$H$70,5,TRUE))) -> 3410.200836 | J47: =IF($L$17=0,0,(VLOOKUP($L$17,Tablas!$A$68:$H$70,6,TRUE))) -> 2806.501474 | K47: =IF($L$17=0,0,(VLOOKUP($L$17,Tablas!$A$68:$H$70,7,TRUE))) -> 2296.006958 | L47: =IF($L$17=0,0,(VLOOKUP($L$17,Tablas!$A$68:$H$70,8,TRUE))) -> 1787.94917
F48: Rider: Complicación de Maternidad | G48: n/a | H48: =+IF($G$2=FALSE,0,Tablas!D$71) -> 0 | I48: =+IF($G$2=FALSE,0,Tablas!E$71) -> 0 | J48: =+IF($G$2=FALSE,0,Tablas!F$71) -> 137.06595 | K48: =+IF($G$2=FALSE,0,Tablas!G$71) -> 137.06595 | L48: =+IF($G$2=FALSE,0,Tablas!H$71) -> 137.06595
F49: TOTAL PRIMA NETA | G49: n/a | H49: =SUM(H45:H48) -> 26944.72904 | I49: =SUM(I45:I48) -> 19237.35838 | J49: =SUM(J45:J48) -> 14870.7418 | K49: =SUM(K45:K48) -> 11209.55798 | L49: =SUM(L45:L48) -> 8841.667548
F50: Costo Administrativo Anual | G50: n/a | H50: =Tablas!$W$2 -> 86 | I50: =Tablas!$W$2 -> 86 | J50: =Tablas!$W$2 -> 86 | K50: =Tablas!$W$2 -> 86 | L50: =Tablas!$W$2 -> 86
F51: TOTAL (1ra Cuota) | G51: n/a | H51: =SUM(H49:H50) -> 27030.72904 | I51: =SUM(I49:I50) -> 19323.35838 | J51: =SUM(J49:J50) -> 14956.7418 | K51: =SUM(K49:K50) -> 11295.55798 | L51: =SUM(L49:L50) -> 8927.667548
F52: TOTAL (2da Cuota) | G52: n/a | H52: =H49 -> 26944.72904 | I52: =I49 -> 19237.35838 | J52: 14870.7418 | K52: 11209.55798 | L52: 8841.667548
F53: GRAN TOTAL: | G53: n/a | H53: =SUM(H51:H52) -> 53975.45808 | I53: =SUM(I51:I52) -> 38560.71676 | J53: 29827.4836 | K53: 22505.11596 | L53: 17769.3351
F57: Este presupuesto solamente tiene carácter informativo y en ningún momento expresa compromiso legal para suministrarle cobertura de seguro. La emisión de una póliza de seguro Bupa está sujeta a todas las evaluaciones de riesgo por parte de Bupa y a la recepción de todos los pagos de prima requeridos.

Sheet Bupa Diamond Care (LA)
N1: RESUMEN DE BENEFICIOS | AA1: RESUMEN DE BENEFICIOS
G2: TRUE | H2: FALSE
A5: Cotización de Seguro Médico Internacional Bupa Diamond Care (Latinoamérica) Tarifas en US$ | Validas: 1 de enero de 2024 | L5: REGIÓN
L7: =IF('INGRESO DE DATOS'!W14="BOLIVIA","BOLIVIA",'INGRESO DE DATOS'!W14) -> BOLIVIA
A13: Nombre del asegurado principal: | G13: =+'INGRESO DE DATOS'!$C$36 -> John Doe
A15: Broker/Agente | G15: =+'INGRESO DE DATOS'!$C$44 -> Agencia
B17: Número de Adultos en la Póliza | G17: =+'INGRESO DE DATOS'!$C$38 -> 2 | J17: Dependientes (menores de 24 años) | L17: =+'INGRESO DE DATOS'!$G$38 -> 2
J18: =IF('INGRESO DE DATOS'!$P$2=TRUE, "Cotización para dependiente de 24 años","") -> 
B19: Edad del Titular | G19: =+'INGRESO DE DATOS'!$C$40 -> 32 | J19: Edad del Cónyuge | L19: =+'INGRESO DE DATOS'!$G$40 -> 46
J21: Fecha de Cotización: | K21: =NOW() -> 2024-03-04T10:52:31.900
F29: DEDUCIBLES | G29: PLAN 1 | H29: PLAN 2 | I29: PLAN 3 | J29: PLAN 4 | K29: PLAN 5 | L29: PLAN 6
F30: Dentro del pais de residencia | G30: n/a | H30: 1000 | I30: 2000 | J30: 5000 | K30: 10000 | L30: 20000
F31: Fuera del pais de residencia | G31: n/a | H31: 2000 | I31: 3000 | J31: 5000 | K31: 10000 | L31: 20000
F34: TARIFAS ANUALES
F35: Prima de Titular | G35: n/a | H35: =VLOOKUP($G$19,Tablas!$A$82:$H$105,4,TRUE) -> 12329.6138 | I35: =VLOOKUP($G$19,Tablas!$A$82:$H$105,5,TRUE) -> 8997.5032 | J35: =VLOOKUP($G$19,Tablas!$A$82:$H$105,6,TRUE) -> 6723.99 | K35: =VLOOKUP($G$19,Tablas!$A$82:$H$105,7,TRUE) -> 4970.0056 | L35: =VLOOKUP($G$19,Tablas!$A$82:$H$105,8,TRUE) -> 3911.4082
F36: Prima de Cónyuge | G36: n/a | H36: =IF($G$17=1,0,(VLOOKUP($L$19,Tablas!$A$82:$H$105,4,TRUE))) -> 18506.4894 | I36: =IF($G$17=1,0,(VLOOKUP($L$19,Tablas!$A$82:$H$105,5,TRUE))) -> 12753.7424 | J36: =IF($G$17=1,0,(VLOOKUP($L$19,Tablas!$A$82:$H$105,6,TRUE))) -> 9672.201 | K36: =IF($G$17=1,0,(VLOOKUP($L$19,Tablas!$A$82:$H$105,7,TRUE))) -> 7087.2004 | L36: =IF($G$17=1,0,(VLOOKUP($L$19,Tablas!$A$82:$H$105,8,TRUE))) -> 5575.7394
F37: Primas Hijos | G37: n/a | H37: =IF($L$17=0,0,(VLOOKUP($L$17,Tablas!$A$106:$H$108,4,TRUE))) -> 6265.3794 | I37: =IF($L$17=0,0,(VLOOKUP($L$17,Tablas!$A$106:$H$108,5,TRUE))) -> 4697.5978 | J37: =IF($L$17=0,0,(VLOOKUP($L$17,Tablas!$A$106:$H$108,6,TRUE))) -> 3871.1792 | K37: =IF($L$17=0,0,(VLOOKUP($L$17,Tablas!$A$106:$H$108,7,TRUE))) -> 3174.6428 | L37: =IF($L$17=0,0,(VLOOKUP($L$17,Tablas!$A$106:$H$108,8,TRUE))) -> 2475.8076
F38: Rider: Complicación de Maternidad | G38: n/a | H38: =+IF($G$2=FALSE,0,Tablas!D$109) -> 0 | I38: =+IF($G$2=FALSE,0,Tablas!E$109) -> 0 | J38: =+IF($G$2=FALSE,0,Tablas!F$109) -> 258.615 | K38: =+IF($G$2=FALSE,0,Tablas!G$109) -> 258.615 | L38: =+IF($G$2=FALSE,0,Tablas!H$109) -> 258.615
F39: TOTAL PRIMA NETA | G39: n/a | H39: =SUM(H35:H38) -> 37101.4826 | I39: =SUM(I35:I38) -> 26448.8434 | J39: =SUM(J35:J38) -> 20525.9852 | K39: =SUM(K35:K38) -> 15490.4638 | L39: =SUM(L35:L38) -> 12221.5702
F40: Costo Administrativo Anual | G40: n/a | H40: =Tablas!$W$2 -> 86 | I40: =Tablas!$W$2 -> 86 | J40: =Tablas!$W$2 -> 86 | K40: =Tablas!$W$2 -> 86 | L40: =Tablas!$W$2 -> 86
F41: GRAN TOTAL: | G41: n/a | H41: =SUM(H39:H40) -> 37187.4826 | I41: =SUM(I39:I40) -> 26534.8434 | J41: =SUM(J39:J40) -> 20611.9852 | K41: =SUM(K39:K40) -> 15576.4638 | L41: =SUM(L39:L40) -> 12307.5702
F44: TARIFAS SEMESTRALES
F45: Prima de Titular | G45: n/a | H45: =VLOOKUP($G$19,Tablas!$A$117:$H$140,4,TRUE) -> 6534.695314 | I45: =VLOOKUP($G$19,Tablas!$A$117:$H$140,5,TRUE) -> 4768.676696 | J45: =VLOOKUP($G$19,Tablas!$A$117:$H$140,6,TRUE) -> 3563.7147 | K45: =VLOOKUP($G$19,Tablas!$A$117:$H$140,7,TRUE) -> 2634.102968 | L45: =VLOOKUP($G$19,Tablas!$A$117:$H$140,8,TRUE) -> 2073.046346
F46: Prima de Cónyuge | G46: n/a | H46: =IF($G$17=1,0,(VLOOKUP($L$19,Tablas!$A$117:$H$140,4,TRUE))) -> 9808.439382 | I46: =IF($G$17=1,0,(VLOOKUP($L$19,Tablas!$A$117:$H$140,5,TRUE))) -> 6759.483472 | J46: =IF($G$17=1,0,(VLOOKUP($L$19,Tablas!$A$117:$H$140,6,TRUE))) -> 5126.26653 | K46: =IF($G$17=1,0,(VLOOKUP($L$19,Tablas!$A$117:$H$140,7,TRUE))) -> 3756.216212 | L46: =IF($G$17=1,0,(VLOOKUP($L$19,Tablas!$A$117:$H$140,8,TRUE))) -> 2955.141882
F47: Primas Hijos | G47: n/a | H47: =IF($L$17=0,0,(VLOOKUP($L$17,Tablas!$A$141:$H$143,4,TRUE))) -> 3320.651082 | I47: =IF($L$17=0,0,(VLOOKUP($L$17,Tablas!$A$141:$H$143,5,TRUE))) -> 2489.726834 | J47: =IF($L$17=0,0,(VLOOKUP($L$17,Tablas!$A$141:$H$143,6,TRUE))) -> 2051.724976 | K47: =IF($L$17=0,0,(VLOOKUP($L$17,Tablas!$A$141:$H$143,7,TRUE))) -> 1682.560684 | L47: =IF($L$17=0,0,(VLOOKUP($L$17,Tablas!$A$141:$H$143,8,TRUE))) -> 1312.178028
F48: Rider: Complicación de Maternidad | G48: n/a | H48: =+IF($G$2=FALSE,0,Tablas!D$144) -> 0 | I48: =+IF($G$2=FALSE,0,Tablas!E$144) -> 0 | J48: =+IF($G$2=FALSE,0,Tablas!F$144) -> 137.06595 | K48: =+IF($G$2=FALSE,0,Tablas!G$144) -> 137.06595 | L48: =+IF($G$2=FALSE,0,Tablas!H$144) -> 137.06595
F49: TOTAL PRIMA NETA | G49: n/a | H49: =SUM(H45:H48) -> 19663.78578 | I49: =SUM(I45:I48) -> 14017.887 | J49: =SUM(J45:J48) -> 10878.77216 | K49: =SUM(K45:K48) -> 8209.945814 | L49: =SUM(L45:L48) -> 6477.432206
F50: Costo Administrativo Anual | G50: n/a | H50: =Tablas!$W$2 -> 86 | I50: =Tablas!$W$2 -> 86 | J50: =Tablas!$W$2 -> 86 | K50: =Tablas!$W$2 -> 86 | L50: =Tablas!$W$2 -> 86
F51: TOTAL (1ra Cuota) | G51: n/a | H51: =SUM(H49:H50) -> 19749.78578 | I51: =SUM(I49:I50) -> 14103.887 | J51: =SUM(J49:J50) -> 10964.77216 | K51: =SUM(K49:K50) -> 8295.945814 | L51: =SUM(L49:L50) -> 6563.432206
F52: TOTAL (2da Cuota) | G52: n/a | H52: =H49 -> 19663.78578 | I52: =I49 -> 14017.887 | J52: 10878.77216 | K52: 8209.945814 | L52: 6477.432206
F53: GRAN TOTAL | G53: n/a | H53: =SUM(H51:H52) -> 39413.57156 | I53: =SUM(I51:I52) -> 28121.774 | J53: 21843.54431 | K53: 16505.89163 | L53: 13040.86441
F55: Este presupuesto solamente tiene carácter informativo y en ningún momento expresa compromiso legal para suministrarle cobertura de seguro. La emisión de una póliza de seguro Bupa está sujeta a todas las evaluaciones de riesgo por parte de Bupa y a la recepción de todos los pagos de prima requeridos.

Sheet Bupa Complete Care (Mundial)
N1: RESUMEN DE BENEFICIOS | AA1: RESUMEN DE BENEFICIOS
G2: TRUE | H2: FALSE
A5: Cotización de Seguro Médico Internacional Bupa Complete Care (Mundial) Tarifas en US$ | Validas: 1 de enero de 2024 | L5: REGIÓN
L7: =IF('INGRESO DE DATOS'!W14="BOLIVIA","BOLIVIA",'INGRESO DE DATOS'!W14) -> BOLIVIA
A13: Nombre del asegurado principal: | G13: =+'INGRESO DE DATOS'!$C$36 -> John Doe
A15: Broker/Agente | G15: =+'INGRESO DE DATOS'!$C$44 -> Agencia
B17: Número de Adultos en la Póliza | G17: =+'INGRESO DE DATOS'!$C$38 -> 2 | J17: Dependientes (menores de 24 años) | L17: =+'INGRESO DE DATOS'!$G$38 -> 2
J18: =IF('INGRESO DE DATOS'!$P$2=TRUE, "Cotización para dependiente de 24 años","") -> 
B19: Edad del Titular | G19: =+'INGRESO DE DATOS'!$C$40 -> 32 | J19: Edad del Cónyuge | L19: =+'INGRESO DE DATOS'!$G$40 -> 46
J21: Fecha de Cotización: | K21: =NOW() -> 2024-03-04T10:52:31.900
F29: DEDUCIBLES | G29: PLAN 1 | H29: PLAN 2 | I29: PLAN 3 | J29: PLAN 4 | K29: PLAN 5 | L29: PLAN 6
F30: Dentro del pais de residencia | G30: n/a | H30: 1000 | I30: 2000 | J30: 5000 | K30: 10000 | L30: 20000
F31: Fuera del pais de residencia | G31: n/a | H31: 2000 | I31: 3000 | J31: 5000 | K31: 10000 | L31: 20000
F34: TARIFAS ANUALES
F35: Prima de Titular | G35: n/a | H35: =VLOOKUP($G$19,Tablas!$A$225:$H$248,4,TRUE) -> 14346.8108 | I35: =VLOOKUP($G$19,Tablas!$A$225:$H$248,5,TRUE) -> 10858.3818 | J35: =VLOOKUP($G$19,Tablas!$A$225:$H$248,6,TRUE) -> 8084.8796 | K35: =VLOOKUP($G$19,Tablas!$A$225:$H$248,7,TRUE) -> 6013.6608 | L35: =VLOOKUP($G$19,Tablas!$A$225:$H$248,8,TRUE) -> 4598.7494
F36: Prima de Cónyuge | G36: n/a | H36: =IF($G$17=1,0,(VLOOKUP($L$19,Tablas!$A$225:$H$248,4,TRUE))) -> 21460.4474 | I36: =IF($G$17=1,0,(VLOOKUP($L$19,Tablas!$A$225:$H$248,5,TRUE))) -> 15388.1672 | J36: =IF($G$17=1,0,(VLOOKUP($L$19,Tablas!$A$225:$H$248,6,TRUE))) -> 11620.434 | K36: =IF($G$17=1,0,(VLOOKUP($L$19,Tablas!$A$225:$H$248,7,TRUE))) -> 8587.1674 | L36: =IF($G$17=1,0,(VLOOKUP($L$19,Tablas!$A$225:$H$248,8,TRUE))) -> 6565.3728
F37: Primas Hijos | G37: n/a | H37: =IF($L$17=0,0,(VLOOKUP($L$17,Tablas!$A$249:$H$251,4,TRUE))) -> 7218.232 | I37: =IF($L$17=0,0,(VLOOKUP($L$17,Tablas!$A$249:$H$251,5,TRUE))) -> 5371.1462 | J37: =IF($L$17=0,0,(VLOOKUP($L$17,Tablas!$A$249:$H$251,6,TRUE))) -> 4197.6088 | K37: =IF($L$17=0,0,(VLOOKUP($L$17,Tablas!$A$249:$H$251,7,TRUE))) -> 3445.9012 | L37: =IF($L$17=0,0,(VLOOKUP($L$17,Tablas!$A$249:$H$251,8,TRUE))) -> 2558.5644
F38: Rider: Complicación de Maternidad | G38: n/a | H38: =+IF($G$2=FALSE,0,Tablas!D$252) -> 0 | I38: =+IF($G$2=FALSE,0,Tablas!E$252) -> 0 | J38: =+IF($G$2=FALSE,0,Tablas!F$252) -> 258.615 | K38: =+IF($G$2=FALSE,0,Tablas!G$252) -> 258.615 | L38: =+IF($G$2=FALSE,0,Tablas!H$252) -> 258.615
F39: TOTAL PRIMA NETA | G39: n/a | H39: =SUM(H35:H38) -> 43025.4902 | I39: =SUM(I35:I38) -> 31617.6952 | J39: =SUM(J35:J38) -> 24161.5374 | K39: =SUM(K35:K38) -> 18305.3444 | L39: =SUM(L35:L38) -> 13981.3016
F40: Costo Administrativo Anual | G40: n/a | H40: =Tablas!$W$2 -> 86 | I40: =Tablas!$W$2 -> 86 | J40: =Tablas!$W$2 -> 86 | K40: =Tablas!$W$2 -> 86 | L40: =Tablas!$W$2 -> 86
F41: GRAN TOTAL: | G41: n/a | H41: =SUM(H39:H40) -> 43111.4902 | I41: =SUM(I39:I40) -> 31703.6952 | J41: =SUM(J39:J40) -> 24247.5374 | K41: =SUM(K39:K40) -> 18391.3444 | L41: =SUM(L39:L40) -> 14067.3016
F44: TARIFAS SEMESTRALES
F45: Prima de Titular | G45: n/a | H45: =VLOOKUP($G$19,Tablas!$A$260:$H$283,4,TRUE) -> 7603.809724 | I45: =VLOOKUP($G$19,Tablas!$A$260:$H$283,5,TRUE) -> 5754.942354 | J45: =VLOOKUP($G$19,Tablas!$A$260:$H$283,6,TRUE) -> 4284.986188 | K45: =VLOOKUP($G$19,Tablas!$A$260:$H$283,7,TRUE) -> 3187.240224 | L45: =VLOOKUP($G$19,Tablas!$A$260:$H$283,8,TRUE) -> 2437.337182
F46: Prima de Cónyuge | G46: n/a | H46: =IF($G$17=1,0,(VLOOKUP($L$19,Tablas!$A$260:$H$283,4,TRUE))) -> 11374.03712 | I46: =IF($G$17=1,0,(VLOOKUP($L$19,Tablas!$A$260:$H$283,5,TRUE))) -> 8155.728616 | J46: =IF($G$17=1,0,(VLOOKUP($L$19,Tablas!$A$260:$H$283,6,TRUE))) -> 6158.83002 | K46: =IF($G$17=1,0,(VLOOKUP($L$19,Tablas!$A$260:$H$283,7,TRUE))) -> 4551.198722 | L46: =IF($G$17=1,0,(VLOOKUP($L$19,Tablas!$A$260:$H$283,8,TRUE))) -> 3479.647584
F47: Primas Hijos | G47: n/a | H47: =IF($L$17=0,0,(VLOOKUP($L$17,Tablas!$A$284:$H$286,4,TRUE))) -> 3825.66296 | I47: =IF($L$17=0,0,(VLOOKUP($L$17,Tablas!$A$284:$H$286,5,TRUE))) -> 2846.707486 | J47: =IF($L$17=0,0,(VLOOKUP($L$17,Tablas!$A$284:$H$286,6,TRUE))) -> 2224.732664 | K47: =IF($L$17=0,0,(VLOOKUP($L$17,Tablas!$A$284:$H$286,7,TRUE))) -> 1826.327636 | L47: =IF($L$17=0,0,(VLOOKUP($L$17,Tablas!$A$284:$H$286,8,TRUE))) -> 1356.039132
F48: Rider: Complicación de Maternidad | G48: n/a | H48: =+IF($G$2=FALSE,0,Tablas!D$287) -> 0 | I48: =+IF($G$2=FALSE,0,Tablas!E$287) -> 0 | J48: =+IF($G$2=FALSE,0,Tablas!F$287) -> 137.06595 | K48: =+IF($G$2=FALSE,0,Tablas!G$287) -> 137.06595 | L48: =+IF($G$2=FALSE,0,Tablas!H$287) -> 137.06595
F49: TOTAL PRIMA NETA | G49: n/a | H49: =SUM(H45:H48) -> 22803.50981 | I49: =SUM(I45:I48) -> 16757.37846 | J49: =SUM(J45:J48) -> 12805.61482 | K49: =SUM(K45:K48) -> 9701.832532 | L49: =SUM(L45:L48) -> 7410.089848
F50: Costo Administrativo Anual | G50: n/a | H50: =Tablas!$W$2 -> 86 | I50: =Tablas!$W$2 -> 86 | J50: =Tablas!$W$2 -> 86 | K50: =Tablas!$W$2 -> 86 | L50: =Tablas!$W$2 -> 86
F51: TOTAL (1ra Cuota) | G51: n/a | H51: =SUM(H49:H50) -> 22889.50981 | I51: =SUM(I49:I50) -> 16843.37846 | J51: =SUM(J49:J50) -> 12891.61482 | K51: =SUM(K49:K50) -> 9787.832532 | L51: =SUM(L49:L50) -> 7496.089848
F52: TOTAL (2da Cuota) | G52: n/a | H52: =H49 -> 22803.50981 | I52: =I49 -> 16757.37846 | J52: 12805.61482 | K52: 9701.832532 | L52: 7410.089848
F53: GRAN TOTAL | G53: n/a | H53: =SUM(H51:H52) -> 45693.01961 | I53: =SUM(I51:I52) -> 33600.75691 | J53: 25697.22964 | K53: 19489.66506 | L53: 14906.1797
F57: Este presupuesto solamente tiene carácter informativo y en ningún momento expresa compromiso legal para suministrarle cobertura de seguro. La emisión de una póliza de seguro Bupa está sujeta a todas las evaluaciones de riesgo por parte de Bupa y a la recepción de todos los pagos de prima requeridos.

Sheet Bupa Complete Care (LA)
N1: RESUMEN DE BENEFICIOS | AA1: RESUMEN DE BENEFICIOS
G2: TRUE | H2: FALSE
A5: Cotización de Seguro Médico Internacional Bupa Complete Care (Latinoamérica) Tarifas en US$ | Validas: 1 de enero de 2024 | L5: REGIÓN
L7: =IF('INGRESO DE DATOS'!W14="BOLIVIA","BOLIVIA",'INGRESO DE DATOS'!W14) -> BOLIVIA
A13: Nombre del asegurado principal: | G13: =+'INGRESO DE DATOS'!$C$36 -> John Doe
A15: Broker/Agente | G15: =+'INGRESO DE DATOS'!$C$44 -> Agencia
B17: Número de Adultos en la Póliza | G17: =+'INGRESO DE DATOS'!$C$38 -> 2 | J17: Dependientes (menores de 24 años) | L17: =+'INGRESO DE DATOS'!$G$38 -> 2
J18: =IF('INGRESO DE DATOS'!$P$2=TRUE, "Cotización para dependiente de 24 años","") -> 
B19: Edad del Titular | G19: =+'INGRESO DE DATOS'!$C$40 -> 32 | J19: Edad del Cónyuge | L19: =+'INGRESO DE DATOS'!$G$40 -> 46
J21: Fecha de Cotización: | K21: =NOW() -> 2024-03-04T10:52:31.900
F29: DEDUCIBLES | G29: PLAN 1 | H29: PLAN 2 | I29: PLAN 3 | J29: PLAN 4 | K29: PLAN 5 | L29: PLAN 6
F30: Dentro del pais de residencia | G30: n/a | H30: 1000 | I30: 2000 | J30: 5000 | K30: 10000 | L30: 20000
F31: Fuera del pais de residencia | G31: n/a | H31: 2000 | I31: 3000 | J31: 5000 | K31: 10000 | L31: 20000
F34: TARIFAS ANUALES
F35: Prima de Titular | G35: n/a | H35: =VLOOKUP($G$19,Tablas!$A$296:$H$319,4,TRUE) -> 10556.0896 | I35: =VLOOKUP($G$19,Tablas!$A$296:$H$319,5,TRUE) -> 7981.4336 | J35: =VLOOKUP($G$19,Tablas!$A$296:$H$319,6,TRUE) -> 5946.9956 | K35: =VLOOKUP($G$19,Tablas!$A$296:$H$319,7,TRUE) -> 4428.6382 | L35: =VLOOKUP($G$19,Tablas!$A$296:$H$319,8,TRUE) -> 3367.742
F36: Prima de Cónyuge | G36: n/a | H36: =IF($G$17=1,0,(VLOOKUP($L$19,Tablas!$A$296:$H$319,4,TRUE))) -> 15800.8018 | I36: =IF($G$17=1,0,(VLOOKUP($L$19,Tablas!$A$296:$H$319,5,TRUE))) -> 11314.6936 | J36: =IF($G$17=1,0,(VLOOKUP($L$19,Tablas!$A$296:$H$319,6,TRUE))) -> 8558.4324 | K36: =IF($G$17=1,0,(VLOOKUP($L$19,Tablas!$A$296:$H$319,7,TRUE))) -> 6312.5048 | L36: =IF($G$17=1,0,(VLOOKUP($L$19,Tablas!$A$296:$H$319,8,TRUE))) -> 4817.1354
F37: Primas Hijos | G37: n/a | H37: =IF($L$17=0,0,(VLOOKUP($L$17,Tablas!$A$320:$H$322,4,TRUE))) -> 5321.722 | I37: =IF($L$17=0,0,(VLOOKUP($L$17,Tablas!$A$320:$H$322,5,TRUE))) -> 3963.1312 | J37: =IF($L$17=0,0,(VLOOKUP($L$17,Tablas!$A$320:$H$322,6,TRUE))) -> 3099.9318 | K37: =IF($L$17=0,0,(VLOOKUP($L$17,Tablas!$A$320:$H$322,7,TRUE))) -> 2542.4728 | L37: =IF($L$17=0,0,(VLOOKUP($L$17,Tablas!$A$320:$H$322,8,TRUE))) -> 1887.3148
F38: Rider: Complicación de Maternidad | G38: n/a | H38: =+IF($G$2=FALSE,0,Tablas!D$323) -> 0 | I38: =+IF($G$2=FALSE,0,Tablas!E$323) -> 0 | J38: =+IF($G$2=FALSE,0,Tablas!F$323) -> 258.615 | K38: =+IF($G$2=FALSE,0,Tablas!G$323) -> 258.615 | L38: =+IF($G$2=FALSE,0,Tablas!H$323) -> 258.615
F39: TOTAL PRIMA NETA | G39: n/a | H39: =SUM(H35:H38) -> 31678.6134 | I39: =SUM(I35:I38) -> 23259.2584 | J39: =SUM(J35:J38) -> 17863.9748 | K39: =SUM(K35:K38) -> 13542.2308 | L39: =SUM(L35:L38) -> 10330.8072
F40: Costo Administrativo Anual | G40: n/a | H40: =Tablas!$W$2 -> 86 | I40: =Tablas!$W$2 -> 86 | J40: =Tablas!$W$2 -> 86 | K40: =Tablas!$W$2 -> 86 | L40: =Tablas!$W$2 -> 86
F41: GRAN TOTAL: | G41: n/a | H41: =SUM(H39:H40) -> 31764.6134 | I41: =SUM(I39:I40) -> 23345.2584 | J41: =SUM(J39:J40) -> 17949.9748 | K41: =SUM(K39:K40) -> 13628.2308 | L41: =SUM(L39:L40) -> 10416.8072
F44: TARIFAS SEMESTRALES
F45: Prima de Titular | G45: n/a | H45: =VLOOKUP($G$19,Tablas!$A$331:$H$354,4,TRUE) -> 5594.727488 | I45: =VLOOKUP($G$19,Tablas!$A$331:$H$354,5,TRUE) -> 4230.159808 | J45: =VLOOKUP($G$19,Tablas!$A$331:$H$354,6,TRUE) -> 3151.907668 | K45: =VLOOKUP($G$19,Tablas!$A$331:$H$354,7,TRUE) -> 2347.178246 | L45: =VLOOKUP($G$19,Tablas!$A$331:$H$354,8,TRUE) -> 1784.90326
F46: Prima de Cónyuge | G46: n/a | H46: =IF($G$17=1,0,(VLOOKUP($L$19,Tablas!$A$331:$H$354,4,TRUE))) -> 8374.424954 | I46: =IF($G$17=1,0,(VLOOKUP($L$19,Tablas!$A$331:$H$354,5,TRUE))) -> 5996.787608 | J46: =IF($G$17=1,0,(VLOOKUP($L$19,Tablas!$A$331:$H$354,6,TRUE))) -> 4535.969172 | K46: =IF($G$17=1,0,(VLOOKUP($L$19,Tablas!$A$331:$H$354,7,TRUE))) -> 3345.627544 | L46: =IF($G$17=1,0,(VLOOKUP($L$19,Tablas!$A$331:$H$354,8,TRUE))) -> 2553.081762
F47: Primas Hijos | G47: n/a | H47: =IF($L$17=0,0,(VLOOKUP($L$17,Tablas!$A$355:$H$357,4,TRUE))) -> 2820.51266 | I47: =IF($L$17=0,0,(VLOOKUP($L$17,Tablas!$A$355:$H$357,5,TRUE))) -> 2100.459536 | J47: =IF($L$17=0,0,(VLOOKUP($L$17,Tablas!$A$355:$H$357,6,TRUE))) -> 1642.963854 | K47: =IF($L$17=0,0,(VLOOKUP($L$17,Tablas!$A$355:$H$357,7,TRUE))) -> 1347.510584 | L47: =IF($L$17=0,0,(VLOOKUP($L$17,Tablas!$A$355:$H$357,8,TRUE))) -> 1000.276844
F48: Rider: Complicación de Maternidad | G48: n/a | H48: =+IF($G$2=FALSE,0,Tablas!D$358) -> 0 | I48: =+IF($G$2=FALSE,0,Tablas!E$358) -> 0 | J48: =+IF($G$2=FALSE,0,Tablas!F$358) -> 137.06595 | K48: =+IF($G$2=FALSE,0,Tablas!G$358) -> 137.06595 | L48: =+IF($G$2=FALSE,0,Tablas!H$358) -> 137.06595
F49: TOTAL PRIMA NETA | G49: n/a | H49: =SUM(H45:H48) -> 16789.6651 | I49: =SUM(I45:I48) -> 12327.40695 | J49: =SUM(J45:J48) -> 9467.906644 | K49: =SUM(K45:K48) -> 7177.382324 | L49: =SUM(L45:L48) -> 5475.327816
F50: Costo Administrativo Anual | G50: n/a | H50: =Tablas!$W$2 -> 86 | I50: =Tablas!$W$2 -> 86 | J50: =Tablas!$W$2 -> 86 | K50: =Tablas!$W$2 -> 86 | L50: =Tablas!$W$2 -> 86
F51: TOTAL (1ra Cuota) | G51: n/a | H51: =SUM(H49:H50) -> 16875.6651 | I51: =SUM(I49:I50) -> 12413.40695 | J51: =SUM(J49:J50) -> 9553.906644 | K51: =SUM(K49:K50) -> 7263.382324 | L51: =SUM(L49:L50) -> 5561.327816
F52: TOTAL (2da Cuota) | G52: n/a | H52: =H49 -> 16789.6651 | I52: =I49 -> 12327.40695 | J52: 9467.906644 | K52: 7177.382324 | L52: 5475.327816
F53: GRAN TOTAL | G53: n/a | H53: =SUM(H51:H52) -> 33665.3302 | I53: =SUM(I51:I52) -> 24740.8139 | J53: 19021.81329 | K53: 14440.76465 | L53: 11036.65563
F56: Este presupuesto solamente tiene carácter informativo y en ningún momento expresa compromiso legal para suministrarle cobertura de seguro. La emisión de una póliza de seguro Bupa está sujeta a todas las evaluaciones de riesgo por parte de Bupa y a la recepción de todos los pagos de prima requeridos.

Sheet Bupa Advantage Care (Mundial)
C1: TRUE | D1: TRUE | I1: RESUMEN DE BENEFICIOS | V1: RESUMEN DE BENEFICIOS
A5: Cotización de Seguro Médico Internacional Bupa Advantage Care (Mundial) Tarifas en US$ | Validas: 1 de enero de 2024 | G5: REGIÓN
G7: =IF('INGRESO DE DATOS'!W14="BOLIVIA","BOLIVIA",'INGRESO DE DATOS'!W14) -> BOLIVIA
A13: Nombre del asegurado principal | B13: =+'INGRESO DE DATOS'!$C$36 -> John Doe
A15: Broker/Agente | B15: =+'INGRESO DE DATOS'!$C$44 -> Agencia
A17: Número de Adultos en la Póliza | B17: =+'INGRESO DE DATOS'!$C$38 -> 2 | D17: Dependientes (menores de 24 años) | G17: =+'INGRESO DE DATOS'!$G$38 -> 2
D18: =IF('INGRESO DE DATOS'!$P$2=TRUE, "Cotización para dependiente de 24 años","") -> 
A19: Edad del Titular | B19: =+'INGRESO DE DATOS'!$C$40 -> 32 | D19: Edad del Cónyuge | G19: =+'INGRESO DE DATOS'!$G$40 -> 46
D21: Fecha de Cotización: | F21: =NOW() -> 2024-03-04T10:52:31.900
A25: DEDUCIBLES | B25: PLAN 1 | C25: PLAN 2 | D25: PLAN 3 | E25: PLAN 4 | F25: PLAN 5 | G25: PLAN 6
A26: Dentro del pais de residencia | B26: n/a | C26: 1000 | D26: 2000 | E26: 5000 | F26: 10000 | G26: 20000
A27: Fuera del pais de residencia | B27: n/a | C27: 2000 | D27: 3000 | E27: 5000 | F27: 10000 | G27: 20000
A30: TARIFAS ANUALES
A31: Prima de Titular | B31: n/a | C31: =VLOOKUP($B$19,Tablas!$A$440:$H$463,4,TRUE) -> 11008.9532 | D31: =VLOOKUP($B$19,Tablas!$A$440:$H$463,5,TRUE) -> 8588.3168 | E31: =VLOOKUP($B$19,Tablas!$A$440:$H$463,6,TRUE) -> 6582.6138 | F31: =VLOOKUP($B$19,Tablas!$A$440:$H$463,7,TRUE) -> 4910.2368 | G31: =VLOOKUP($B$19,Tablas!$A$440:$H$463,8,TRUE) -> 3790.7212
A32: Prima de Cónyuge | B32: n/a | C32: =IF($B$17=1,0,(VLOOKUP($G$19,Tablas!$A$440:$H$463,4,TRUE))) -> 16526.0732 | D32: =IF($B$17=1,0,(VLOOKUP($G$19,Tablas!$A$440:$H$463,5,TRUE))) -> 12890.521 | E32: =IF($B$17=1,0,(VLOOKUP($G$19,Tablas!$A$440:$H$463,6,TRUE))) -> 9666.454 | F32: =IF($B$17=1,0,(VLOOKUP($G$19,Tablas!$A$440:$H$463,7,TRUE))) -> 7353.8612 | G32: =IF($B$17=1,0,(VLOOKUP($G$19,Tablas!$A$440:$H$463,8,TRUE))) -> 5711.3686
A33: Primas Hijos | B33: n/a | C33: =IF($G$17=0,0,(VLOOKUP($G$17,Tablas!$A$464:$H$466,4,TRUE))) -> 6192.9672 | D33: =IF($G$17=0,0,(VLOOKUP($G$17,Tablas!$A$464:$H$466,5,TRUE))) -> 4357.3754 | E33: =IF($G$17=0,0,(VLOOKUP($G$17,Tablas!$A$464:$H$466,6,TRUE))) -> 3413.718 | F33: =IF($G$17=0,0,(VLOOKUP($G$17,Tablas!$A$464:$H$466,7,TRUE))) -> 2950.5098 | G33: =IF($G$17=0,0,(VLOOKUP($G$17,Tablas!$A$464:$H$466,8,TRUE))) -> 1987.3126
A34: Rider: Complicaciones de Maternidad | B34: n/a | C34: =+IF($C$1=FALSE,0,Tablas!D$467) -> 258.615 | D34: =+IF($C$1=FALSE,0,Tablas!E$467) -> 258.615 | E34: =+IF($C$1=FALSE,0,Tablas!F$467) -> 258.615 | F34: =+IF($C$1=FALSE,0,Tablas!G$467) -> 258.615 | G34: =+IF($C$1=FALSE,0,Tablas!H$467) -> 258.615
A35: Rider: Trasplante Organos | B35: n/a | C35: =IF($D$1=FALSE,0,Tablas!D$468) -> 344.82 | D35: =IF($D$1=FALSE,0,Tablas!E$468) -> 344.82 | E35: =IF($D$1=FALSE,0,Tablas!F$468) -> 344.82 | F35: =IF($D$1=FALSE,0,Tablas!G$468) -> 344.82 | G35: =IF($D$1=FALSE,0,Tablas!H$468) -> 344.82
A36: TOTAL PRIMA NETA | B36: n/a | C36: =SUM(C31:C35) -> 34331.4286 | D36: 26439.6482 | E36: 20266.2208 | F36: 15818.0428 | G36: 12092.8374
A37: Costo Administrativo Annual | B37: n/a | C37: =Tablas!$W$2 -> 86 | D37: =Tablas!$W$2 -> 86 | E37: =Tablas!$W$2 -> 86 | F37: =Tablas!$W$2 -> 86 | G37: =Tablas!$W$2 -> 86
A38: GRAN TOTAL : | B38: n/a | C38: =SUM(C36:C37) -> 34417.4286 | D38: =SUM(D36:D37) -> 26525.6482 | E38: =SUM(E36:E37) -> 20352.2208 | F38: =SUM(F36:F37) -> 15904.0428 | G38: =SUM(G36:G37) -> 12178.8374
A41: TARIFAS SEMESTRALES
A42: Prima de Titular | B42: n/a | C42: =VLOOKUP($B$19,Tablas!$A$475:$H$498,4,TRUE) -> 5834.745196 | D42: =VLOOKUP($B$19,Tablas!$A$475:$H$498,5,TRUE) -> 4551.807904 | E42: =VLOOKUP($B$19,Tablas!$A$475:$H$498,6,TRUE) -> 3488.785314 | F42: =VLOOKUP($B$19,Tablas!$A$475:$H$498,7,TRUE) -> 2602.425504 | G42: =VLOOKUP($B$19,Tablas!$A$475:$H$498,8,TRUE) -> 2009.082236
A43: Prima de Cónyuge | B43: n/a | C43: =IF($B$17=1,0,(VLOOKUP($G$19,Tablas!$A$475:$H$498,4,TRUE))) -> 8758.818796 | D43: =IF($B$17=1,0,(VLOOKUP($G$19,Tablas!$A$475:$H$498,5,TRUE))) -> 6831.97613 | E43: =IF($B$17=1,0,(VLOOKUP($G$19,Tablas!$A$475:$H$498,6,TRUE))) -> 5123.22062 | F43: =IF($B$17=1,0,(VLOOKUP($G$19,Tablas!$A$475:$H$498,7,TRUE))) -> 3897.546436 | G43: =IF($B$17=1,0,(VLOOKUP($G$19,Tablas!$A$475:$H$498,8,TRUE))) -> 3027.025358
A44: Primas Hijos | B44: n/a | C44: =IF($G$17=0,0,(VLOOKUP($G$17,Tablas!$A$499:$H$501,4,TRUE))) -> 3282.272616 | D44: =IF($G$17=0,0,(VLOOKUP($G$17,Tablas!$A$499:$H$501,5,TRUE))) -> 2309.408962 | E44: =IF($G$17=0,0,(VLOOKUP($G$17,Tablas!$A$499:$H$501,6,TRUE))) -> 1809.27054 | F44: =IF($G$17=0,0,(VLOOKUP($G$17,Tablas!$A$499:$H$501,7,TRUE))) -> 1563.770194 | G44: =IF($G$17=0,0,(VLOOKUP($G$17,Tablas!$A$499:$H$501,8,TRUE))) -> 1053.275678
A45: Rider: Complicaciones de Maternidad | B45: n/a | C45: =+IF($C$1=FALSE,0,Tablas!D$502) -> 137.06595 | D45: =+IF($C$1=FALSE,0,Tablas!E$502) -> 137.06595 | E45: =+IF($C$1=FALSE,0,Tablas!F$502) -> 137.06595 | F45: =+IF($C$1=FALSE,0,Tablas!G$502) -> 137.06595 | G45: =+IF($C$1=FALSE,0,Tablas!H$502) -> 137.06595
A46: Rider: Trasplante Organos | B46: n/a | C46: =IF($D$1=FALSE,0,Tablas!D$503) -> 182.7546 | D46: =IF($D$1=FALSE,0,Tablas!E$503) -> 182.7546 | E46: =IF($D$1=FALSE,0,Tablas!F$503) -> 182.7546 | F46: =IF($D$1=FALSE,0,Tablas!G$503) -> 182.7546 | G46: =IF($D$1=FALSE,0,Tablas!H$503) -> 182.7546
A47: TOTAL PRIMA NETA | B47: n/a | C47: =SUM(C42:C46) -> 18195.65716 | D47: 14013.01355 | E47: 10741.09702 | F47: 8383.562684 | G47: 6409.203822
A48: Costo Administrativo Anual | B48: n/a | C48: =Tablas!$W$2 -> 86 | D48: =Tablas!$W$2 -> 86 | E48: =Tablas!$W$2 -> 86 | F48: =Tablas!$W$2 -> 86 | G48: =Tablas!$W$2 -> 86
A49: TOTAL (1ra Cuota) | B49: n/a | C49: =SUM(C47:C48) -> 18281.65716 | D49: =SUM(D47:D48) -> 14099.01355 | E49: =SUM(E47:E48) -> 10827.09702 | F49: =SUM(F47:F48) -> 8469.562684 | G49: =SUM(G47:G48) -> 6495.203822
A50: TOTAL (2da Cuota) | B50: n/a | C50: =C47 -> 18195.65716 | D50: =D47 -> 14013.01355 | E50: 10741.09702 | F50: 8383.562684 | G50: 6409.203822
A51: GRAN TOTAL | B51: n/a | C51: =SUM(C49:C50) -> 36477.31432 | D51: =SUM(D49:D50) -> 28112.02709 | E51: 21568.19405 | F51: 16853.12537 | G51: 12904.40764
A54: Este presupuesto solamente tiene carácter informativo y en ningún momento expresa compromiso legal para suministrarle cobertura de seguro. La emisión de una póliza de seguro Bupa está sujeta a todas las evaluaciones de riesgo por parte de Bupa y a la recepción de todos los pagos de prima requeridos.

Sheet Advantage (LA) (hidden)
A10: Cotización de Seguro Médico Internacional - Bupa ADVANTAGE Care (cobertura solo Latinoamérica)
A12: Bupa Advantage Care (cobertura solo en Latinoamérica) | H12: =+'INGRESO DE DATOS'!$C$36 -> John Doe
A13: Cobertura Máxima anual | C13: US $ 3,500,000
A14: Cobertura Geografica | C14: Limitada a Latinoamérica excluyendo México | H14: =+'INGRESO DE DATOS'!$C$44 -> Agencia
A15: Condiciones médicas cubiertas | C15: Todas las condiciones médicas
A16: Redes de proveedores | C16: Red de Proveedores "Bupa Advantage" | J16: =+'INGRESO DE DATOS'!$C$38 -> 2 | M16: =+'INGRESO DE DATOS'!$C$40 -> 32
A17: Opciones fuera de la Red | C17: NO, solo en casos de emergencia | F17: FECHA DE COTIZACION :
A18: Requiere preautorización | C18: SI, 30% de penalización por omitir prenotificación | F18: =NOW() -> 2024-03-04T10:52:31.900 | J18: =+'INGRESO DE DATOS'!$G$38 -> 2 | M18: =+'INGRESO DE DATOS'!$G$40 -> 46
A20: Número máximo de días de hospitalización | C20: Ilimitado | I20: TRUE | K20: COMPLICACIONES DE MATERNIDAD
A21: Habitación y alimentación | C21: 100% dentro de Red Bupa
C22: "UCR" para L.A. en emergencias fuera de Red Bupa | I22: TRUE | K22: TRASPLANTE DE ORGANOS
A23: Cuidados Intensivos | C23: 100% dentro de Red Bupa
C24: "UCR" para L.A. en emergencias fuera de Red Bupa
A25: Cobertura de Maternidad | C25: $5,000 (Excepto planes 4,5, y 6) | F25: Deducibles | H25: PLAN 1 | I25: PLAN 2 | J25: PLAN 3 | K25: PLAN 4 | L25: PLAN 5 | M25: PLAN 6
A26: Cobertura Provisional de Recién Nacido | C26: $30,000 por los primeros 90 días | F26: Dentro del pais de residencia | H26: n/a | I26: 1000 | J26: 2000 | K26: 5000 | L26: 10000 | M26: 20000
A27: Cuidado del Recién Nacido saludable | C27: Ya incluída dentro del beneficio de Maternidad | F27: Fuera del pais de residencia | H27: n/a | I27: 2000 | J27: 3000 | K27: 5000 | L27: 10000 | M27: 20000
A28: Cobertura de Complicaciones de Maternidad | C28: Disponible a través de cobertura opcional adicional
A29: Trasplante de Organos | C29: $1,000,000 de por vida, por diagnóstico
A30: Condiciones congénitas y hereditarias | C30: <18 años $300,000 de por vida; >=18 al 100% | F30: Tarifas Anuales
A31: Coberturas opcionales (Riders) | C31: Complicaciones de Maternidad por $500,000 | F31: Prima de Titular : | H31: n/a | I31: =VLOOKUP($M$16,Tablas!$A$582:$H$605,4,TRUE) -> 14491 | J31: =VLOOKUP($M$16,Tablas!$A$582:$H$605,5,TRUE) -> 11087 | K31: =VLOOKUP($M$16,Tablas!$A$582:$H$605,6,TRUE) -> 7953 | L31: =VLOOKUP($M$16,Tablas!$A$582:$H$605,7,TRUE) -> 5984 | M31: =VLOOKUP($M$16,Tablas!$A$582:$H$605,8,TRUE) -> 4611
C32: Trasplante de órganos por $ 300,000 adicionales | F32: Prima de Cónyuge | H32: n/a | I32: =IF($J$16=1,0,(VLOOKUP($M$18,Tablas!$A$582:$H$605,4,TRUE))) -> 21074 | J32: =IF($J$16=1,0,(VLOOKUP($M$18,Tablas!$A$582:$H$605,5,TRUE))) -> 16127 | K32: =IF($J$16=1,0,(VLOOKUP($M$18,Tablas!$A$582:$H$605,6,TRUE))) -> 11319 | L32: =IF($J$16=1,0,(VLOOKUP($M$18,Tablas!$A$582:$H$605,7,TRUE))) -> 8682 | M32: =IF($J$16=1,0,(VLOOKUP($M$18,Tablas!$A$582:$H$605,8,TRUE))) -> 6734
A33: Acompañamiento de menores hospitalizados | C33: $300 por día | F33: Primas Hijos : | H33: n/a | I33: =IF($J$18=0,0,(VLOOKUP($J$18,Tablas!$A$606:$H$608,4,TRUE))) -> 8181 | J33: =IF($J$18=0,0,(VLOOKUP($J$18,Tablas!$A$606:$H$608,5,TRUE))) -> 5634 | K33: =IF($J$18=0,0,(VLOOKUP($J$18,Tablas!$A$606:$H$608,6,TRUE))) -> 4146 | L33: =IF($J$18=0,0,(VLOOKUP($J$18,Tablas!$A$606:$H$608,7,TRUE))) -> 3620 | M33: =IF($J$18=0,0,(VLOOKUP($J$18,Tablas!$A$606:$H$608,8,TRUE))) -> 2438
A34: Ambulancia aérea | C34: $100,000 por año y ticket aéreo de retorno | F34: Prima Rider Complic. Maternidad | H34: n/a | I34: =+IF($I$20=FALSE,0,Tablas!D$609) -> 0 | J34: =+IF($I$20=FALSE,0,Tablas!E$609) -> 0 | K34: =+IF($I$20=FALSE,0,Tablas!F$609) -> 0 | L34: =+IF($I$20=FALSE,0,Tablas!G$609) -> 0 | M34: =+IF($I$20=FALSE,0,Tablas!H$609) -> 0
A35: Repatriación restos mortales | C35: 1 | F35: Prima Rider Trasplante Organos | H35: n/a | I35: =IF($I$22=FALSE,0,Tablas!D$610) -> 0 | J35: =IF($I$22=FALSE,0,Tablas!E$610) -> 0 | K35: =IF($I$22=FALSE,0,Tablas!F$610) -> 0 | L35: =IF($I$22=FALSE,0,Tablas!G$610) -> 0 | M35: =IF($I$22=FALSE,0,Tablas!H$610) -> 0
A36: Medicamentos por receta | C36: $6,000 por Asegurado, por año póliza | F36: TOTAL PRIMA NETA : | H36: n/a | I36: =SUM(I31:I35) -> 43746 | J36: 32848 | K36: 23418 | L36: 18286 | M36: 13783
A37: Almacenamiento de sangre de cordon umbilical | C37: $500 (Excepto planes 4,5, y 6) | F37: Costo Administrativo Anual : | H37: n/a | I37: 75 | J37: 75 | K37: 75 | L37: 75 | M37: 75
F38: GRAN TOTAL : | H38: n/a | I38: =SUM(I36:I37) -> 43821 | J38: =SUM(J36:J37) -> 32923 | K38: =SUM(K36:K37) -> 23493 | L38: =SUM(L36:L37) -> 18361 | M38: =SUM(M36:M37) -> 13858
A39: Atención médica en el hogar | C39: 100% de usual/acostumbrado y razonable
A40: Rehabilitación | C40: 100% de usual/acostumbrado y razonable | F40: Tarifas Semestrales
A41: Residencia y cuidados paliativos | C41: 100% de usual/acostumbrado y razonable | F41: Prima de Titular : | H41: n/a | I41: =VLOOKUP($M$16,Tablas!$A$615:$H$638,4,TRUE) -> 7680.23 | J41: =VLOOKUP($M$16,Tablas!$A$615:$H$638,5,TRUE) -> 5876.11 | K41: =VLOOKUP($M$16,Tablas!$A$615:$H$638,6,TRUE) -> 4215.09 | L41: =VLOOKUP($M$16,Tablas!$A$615:$H$638,7,TRUE) -> 3171.52 | M41: =VLOOKUP($M$16,Tablas!$A$615:$H$638,8,TRUE) -> 2443.83
A42: Cobertura de actividades peligrosas | C42: 1 | F42: Prima de Cónyuge | H42: n/a | I42: =IF($J$16=1,0,(VLOOKUP($M$18,Tablas!$A$615:$H$638,4,TRUE))) -> 11169.22 | J42: =IF($J$16=1,0,(VLOOKUP($M$18,Tablas!$A$615:$H$638,5,TRUE))) -> 8547.31 | K42: =IF($J$16=1,0,(VLOOKUP($M$18,Tablas!$A$615:$H$638,6,TRUE))) -> 5999.07 | L42: =IF($J$16=1,0,(VLOOKUP($M$18,Tablas!$A$615:$H$638,7,TRUE))) -> 4601.46 | M42: =IF($J$16=1,0,(VLOOKUP($M$18,Tablas!$A$615:$H$638,8,TRUE))) -> 3569.02
A43: Chequeos generales de rutina | C43: Hasta US$150 por año póliza.Sin deducible | F43: Primas Hijos : | H43: n/a | I43: =IF($J$18=0,0,(VLOOKUP($J$18,Tablas!$A$639:$H$641,4,TRUE))) -> 4335.93 | J43: =IF($J$18=0,0,(VLOOKUP($J$18,Tablas!$A$639:$H$641,5,TRUE))) -> 2986.02 | K43: =IF($J$18=0,0,(VLOOKUP($J$18,Tablas!$A$639:$H$641,6,TRUE))) -> 2197.38 | L43: =IF($J$18=0,0,(VLOOKUP($J$18,Tablas!$A$639:$H$641,7,TRUE))) -> 1918.6 | M43: =IF($J$18=0,0,(VLOOKUP($J$18,Tablas!$A$639:$H$641,8,TRUE))) -> 1292.14
A44: Cobertura de VIH, SIDA, CAS | C44: Solo como efecto de transfusión de sangre | F44: Prima Rider Complic. Maternidad | H44: n/a | I44: =+IF($I$20=FALSE,0,Tablas!D$642) -> 0 | J44: =+IF($I$20=FALSE,0,Tablas!E$642) -> 0 | K44: =+IF($I$20=FALSE,0,Tablas!F$642) -> 0 | L44: =+IF($I$20=FALSE,0,Tablas!G$642) -> 0 | M44: =+IF($I$20=FALSE,0,Tablas!H$642) -> 0
A45: Cobertura de brazos y piernas artificiales | C45: $30,000 por año y hasta $120,000 de por vida | F45: Prima Rider Trasplante Organos | H45: n/a | I45: =IF($I$22=FALSE,0,Tablas!D$643) -> 0 | J45: =IF($I$22=FALSE,0,Tablas!E$643) -> 0 | K45: =IF($I$22=FALSE,0,Tablas!F$643) -> 0 | L45: =IF($I$22=FALSE,0,Tablas!G$643) -> 0 | M45: =IF($I$22=FALSE,0,Tablas!H$643) -> 0
A46: Cobertura extendida para dependientes en caso de muerte de asegurado principal | C46: 2 años sin costo | F46: TOTAL PRIMA NETA : | H46: n/a | I46: =SUM(I41:I45) -> 23185.38 | J46: 17409.44 | K46: 12411.54 | L46: 9691.58 | M46: 7304.99
F47: Costo Administrativo Anual : | H47: n/a | I47: 75 | J47: 75 | K47: 75 | L47: 75 | M47: 75
F48: GRAN TOTAL (1ra Cuota) : | H48: n/a | I48: =SUM(I46:I47) -> 23260.38 | J48: =SUM(J46:J47) -> 17484.44 | K48: =SUM(K46:K47) -> 12486.54 | L48: =SUM(L46:L47) -> 9766.58 | M48: =SUM(M46:M47) -> 7379.99
F49: GRAN TOTAL (2da Cuota) : | H49: n/a | I49: =I46 -> 23185.38 | J49: =J46 -> 17409.44 | K49: 12411.54 | L49: 9691.58 | M49: 7304.99
F50: Tarifas en US $ - Válidas desde 01 Ene 2013

Sheet Bupa Advantage Care (LA)
C1: FALSE | D1: FALSE | I1: RESUMEN DE BENEFICIOS | V1: RESUMEN DE BENEFICIOS
A5: Cotización de Seguro Médico Internacional Bupa Advantage Care (Latinoamérica) Tarifas en US$ | Validas: 1 de enero de 2024 | G5: REGIÓN
G7: =IF('INGRESO DE DATOS'!W14="BOLIVIA","BOLIVIA",'INGRESO DE DATOS'!W14) -> BOLIVIA
A13: Nombre del asegurado principal | B13: =+'INGRESO DE DATOS'!$C$36 -> John Doe
A15: Broker/Agente | B15: =+'INGRESO DE DATOS'!$C$44 -> Agencia
A17: Número de Adultos en la Póliza | B17: =+'INGRESO DE DATOS'!$C$38 -> 2 | D17: Dependientes (menores de 24 años) | G17: =+'INGRESO DE DATOS'!$G$38 -> 2
D18: =IF('INGRESO DE DATOS'!$P$2=TRUE, "Cotización para dependiente de 24 años","") -> 
A19: Edad del Titular | B19: =+'INGRESO DE DATOS'!$C$40 -> 32 | D19: Edad del Cónyuge | G19: =+'INGRESO DE DATOS'!$G$40 -> 46
D21: Fecha de Cotización: | F21: =NOW() -> 2024-03-04T10:52:31.900
A25: DEDUCIBLES | B25: PLAN 1 | C25: PLAN 2 | D25: PLAN 3 | E25: PLAN 4 | F25: PLAN 5 | G25: PLAN 6
A26: Dentro del pais de residencia | B26: n/a | C26: 1000 | D26: 2000 | E26: 5000 | F26: 10000 | G26: 20000
A27: Fuera del pais de residencia | B27: n/a | C27: 2000 | D27: 3000 | E27: 5000 | F27: 10000 | G27: 20000
A30: TARIFAS ANUALES
A31: Prima de Titular | B31: n/a | C31: =VLOOKUP($B$19,Tablas!$A$510:$H$533,4,TRUE) -> 8169.9352 | D31: =VLOOKUP($B$19,Tablas!$A$510:$H$533,5,TRUE) -> 6359.6302 | E31: =VLOOKUP($B$19,Tablas!$A$510:$H$533,6,TRUE) -> 4878.0536 | F31: =VLOOKUP($B$19,Tablas!$A$510:$H$533,7,TRUE) -> 3637.851 | G31: =VLOOKUP($B$19,Tablas!$A$510:$H$533,8,TRUE) -> 2806.8348
A32: Prima de Cónyuge | B32: n/a | C32: =IF($B$17=1,0,(VLOOKUP($G$19,Tablas!$A$510:$H$533,4,TRUE))) -> 12258.351 | D32: =IF($B$17=1,0,(VLOOKUP($G$19,Tablas!$A$510:$H$533,5,TRUE))) -> 9552.6634 | E32: =IF($B$17=1,0,(VLOOKUP($G$19,Tablas!$A$510:$H$533,6,TRUE))) -> 7167.6584 | F32: =IF($B$17=1,0,(VLOOKUP($G$19,Tablas!$A$510:$H$533,7,TRUE))) -> 5448.156 | G32: =IF($B$17=1,0,(VLOOKUP($G$19,Tablas!$A$510:$H$533,8,TRUE))) -> 4228.6426
A33: Primas Hijos | B33: n/a | C33: =IF($G$17=0,0,(VLOOKUP($G$17,Tablas!$A$534:$H$536,4,TRUE))) -> 4605.6458 | D33: =IF($G$17=0,0,(VLOOKUP($G$17,Tablas!$A$534:$H$536,5,TRUE))) -> 3241.308 | E33: =IF($G$17=0,0,(VLOOKUP($G$17,Tablas!$A$534:$H$536,6,TRUE))) -> 2551.668 | F33: =IF($G$17=0,0,(VLOOKUP($G$17,Tablas!$A$534:$H$536,7,TRUE))) -> 2204.5492 | G33: =IF($G$17=0,0,(VLOOKUP($G$17,Tablas!$A$534:$H$536,8,TRUE))) -> 1473.5308
A34: Rider: Complicaciones de Maternidad | B34: n/a | C34: =+IF($C$1=FALSE,0,Tablas!D$537) -> 0 | D34: =+IF($C$1=FALSE,0,Tablas!E$537) -> 0 | E34: =+IF($C$1=FALSE,0,Tablas!F$537) -> 0 | F34: =+IF($C$1=FALSE,0,Tablas!G$537) -> 0 | G34: =+IF($C$1=FALSE,0,Tablas!H$537) -> 0
A35: Rider: Trasplante Organos | B35: n/a | C35: =IF($D$1=FALSE,0,Tablas!D$538) -> 0 | D35: =IF($D$1=FALSE,0,Tablas!E$538) -> 0 | E35: =IF($D$1=FALSE,0,Tablas!F$538) -> 0 | F35: =IF($D$1=FALSE,0,Tablas!G$538) -> 0 | G35: =IF($D$1=FALSE,0,Tablas!H$538) -> 0
A36: TOTAL PRIMA NETA | B36: n/a | C36: =SUM(C31:C35) -> 25033.932 | D36: 19153.6016 | E36: 14597.38 | F36: 11290.5562 | G36: 8509.0082
A37: Costo Administrativo Annual | B37: n/a | C37: =Tablas!$W$2 -> 86 | D37: =Tablas!$W$2 -> 86 | E37: =Tablas!$W$2 -> 86 | F37: =Tablas!$W$2 -> 86 | G37: =Tablas!$W$2 -> 86
A38: GRAN TOTAL : | B38: n/a | C38: =SUM(C36:C37) -> 25119.932 | D38: =SUM(D36:D37) -> 19239.6016 | E38: =SUM(E36:E37) -> 14683.38 | F38: =SUM(F36:F37) -> 11376.5562 | G38: =SUM(G36:G37) -> 8595.0082
A41: TARIFAS SEMESTRALES
A42: Prima de Titular | B42: n/a | C42: =VLOOKUP($B$19,Tablas!$A$545:$H$568,4,TRUE) -> 4330.065656 | D42: =VLOOKUP($B$19,Tablas!$A$545:$H$568,5,TRUE) -> 3370.604006 | E42: =VLOOKUP($B$19,Tablas!$A$545:$H$568,6,TRUE) -> 2585.368408 | F42: =VLOOKUP($B$19,Tablas!$A$545:$H$568,7,TRUE) -> 1928.06103 | G42: =VLOOKUP($B$19,Tablas!$A$545:$H$568,8,TRUE) -> 1487.622444
A43: Prima de Cónyuge | B43: n/a | C43: =IF($B$17=1,0,(VLOOKUP($G$19,Tablas!$A$545:$H$568,4,TRUE))) -> 6496.92603 | D43: =IF($B$17=1,0,(VLOOKUP($G$19,Tablas!$A$545:$H$568,5,TRUE))) -> 5062.911602 | E43: =IF($B$17=1,0,(VLOOKUP($G$19,Tablas!$A$545:$H$568,6,TRUE))) -> 3798.858952 | F43: =IF($B$17=1,0,(VLOOKUP($G$19,Tablas!$A$545:$H$568,7,TRUE))) -> 2887.52268 | G43: =IF($B$17=1,0,(VLOOKUP($G$19,Tablas!$A$545:$H$568,8,TRUE))) -> 2241.180578
A44: Primas Hijos | B44: n/a | C44: =IF($G$17=0,0,(VLOOKUP($G$17,Tablas!$A$569:$H$571,4,TRUE))) -> 2440.992274 | D44: =IF($G$17=0,0,(VLOOKUP($G$17,Tablas!$A$569:$H$571,5,TRUE))) -> 1717.89324 | E44: =IF($G$17=0,0,(VLOOKUP($G$17,Tablas!$A$569:$H$571,6,TRUE))) -> 1352.38404 | F44: =IF($G$17=0,0,(VLOOKUP($G$17,Tablas!$A$569:$H$571,7,TRUE))) -> 1168.411076 | G44: =IF($G$17=0,0,(VLOOKUP($G$17,Tablas!$A$569:$H$571,8,TRUE))) -> 780.971324
A45: Rider: Complicaciones de Maternidad | B45: n/a | C45: =+IF($C$1=FALSE,0,Tablas!D$572) -> 0 | D45: =+IF($C$1=FALSE,0,Tablas!E$572) -> 0 | E45: =+IF($C$1=FALSE,0,Tablas!F$572) -> 0 | F45: =+IF($C$1=FALSE,0,Tablas!G$572) -> 0 | G45: =+IF($C$1=FALSE,0,Tablas!H$572) -> 0
A46: Rider: Trasplante Organos | B46: n/a | C46: =IF($D$1=FALSE,0,Tablas!D$573) -> 0 | D46: =IF($D$1=FALSE,0,Tablas!E$573) -> 0 | E46: =IF($D$1=FALSE,0,Tablas!F$573) -> 0 | F46: =IF($D$1=FALSE,0,Tablas!G$573) -> 0 | G46: =IF($D$1=FALSE,0,Tablas!H$573) -> 0
A47: TOTAL PRIMA NETA | B47: n/a | C47: =SUM(C42:C46) -> 13267.98396 | D47: 10151.40885 | E47: 7736.6114 | F47: 5983.994786 | G47: 4509.774346
A48: Costo Administrativo Anual | B48: n/a | C48: =Tablas!$W$2 -> 86 | D48: =Tablas!$W$2 -> 86 | E48: =Tablas!$W$2 -> 86 | F48: =Tablas!$W$2 -> 86 | G48: =Tablas!$W$2 -> 86
A49: TOTAL (1ra Cuota) | B49: n/a | C49: =SUM(C47:C48) -> 13353.98396 | D49: =SUM(D47:D48) -> 10237.40885 | E49: =SUM(E47:E48) -> 7822.6114 | F49: =SUM(F47:F48) -> 6069.994786 | G49: =SUM(G47:G48) -> 4595.774346
A50: TOTAL (2da Cuota) | B50: n/a | C50: =C47 -> 13267.98396 | D50: =D47 -> 10151.40885 | E50: 7736.6114 | F50: 5983.994786 | G50: 4509.774346
A51: GRAN TOTAL | B51: n/a | C51: =SUM(C49:C50) -> 26621.96792 | D51: =SUM(D49:D50) -> 20388.8177 | E51: 15559.2228 | F51: 12053.98957 | G51: 9105.548692
A54: Este presupuesto solamente tiene carácter informativo y en ningún momento expresa compromiso legal para suministrarle cobertura de seguro. La emisión de una póliza de seguro Bupa está sujeta a todas las evaluaciones de riesgo por parte de Bupa y a la recepción de todos los pagos de prima requeridos.

Sheet Bupa Secure Care
B1: TRUE | C1: TRUE | I1: RESUMEN DE BENEFICIOS | V1: RESUMEN DE BENEFICIOS
A5: Cotización de Seguro Médico Internacional Bupa Secure Care Tarifas en US$ | Validas: 1 de enero de 2024 | G5: REGIÓN
G7: =IF('INGRESO DE DATOS'!W14="BOLIVIA","BOLIVIA",'INGRESO DE DATOS'!W14) -> BOLIVIA
A13: Nombre del asegurado principal | B13: =+'INGRESO DE DATOS'!$C$36 -> John Doe
A15: Broker/Agente | B15: =+'INGRESO DE DATOS'!$C$44 -> Agencia
A17: Número de Adultos en la Póliza | B17: =+'INGRESO DE DATOS'!$C$38 -> 2 | D17: Dependientes (menores de 24 años) | G17: =+'INGRESO DE DATOS'!$G$38 -> 2
D18: =IF('INGRESO DE DATOS'!$P$2=TRUE, "Cotización para dependiente de 24 años","") -> 
A19: Edad del Titular | B19: =+'INGRESO DE DATOS'!$C$40 -> 32 | D19: Edad del Cónyuge | G19: =+'INGRESO DE DATOS'!$G$40 -> 46
D21: Fecha de Cotización: | F21: =NOW() -> 2024-03-04T10:52:31.900
A25: DEDUCIBLES | B25: PLAN 1 | C25: PLAN 2 | D25: PLAN 3 | E25: PLAN 4 | F25: PLAN 5 | G25: PLAN 6
A26: Dentro del pais de residencia | B26: n/a | C26: 1000 | D26: 2000 | E26: 5000 | F26: 10000 | G26: 20000
A27: Fuera del pais de residencia | B27: n/a | C27: 2000 | D27: 3000 | E27: 5000 | F27: 10000 | G27: 20000
A30: TARIFAS ANUALES
A31: Prima de Titular | B31: n/a | C31: =VLOOKUP($B$19,Tablas!$A$652:$H$675,4,TRUE) -> 8188.3256 | D31: =VLOOKUP($B$19,Tablas!$A$652:$H$675,5,TRUE) -> 6859.6192 | E31: =VLOOKUP($B$19,Tablas!$A$652:$H$675,6,TRUE) -> 5113.6806 | F31: =VLOOKUP($B$19,Tablas!$A$652:$H$675,7,TRUE) -> 4310.25 | G31: =VLOOKUP($B$19,Tablas!$A$652:$H$675,8,TRUE) -> 3260.8478
A32: Prima de Cónyuge | B32: n/a | C32: =IF($B$17=1,0,(VLOOKUP($G$19,Tablas!$A$652:$H$675,4,TRUE))) -> 12033.0686 | D32: =IF($B$17=1,0,(VLOOKUP($G$19,Tablas!$A$652:$H$675,5,TRUE))) -> 10594.0198 | E32: =IF($B$17=1,0,(VLOOKUP($G$19,Tablas!$A$652:$H$675,6,TRUE))) -> 7718.221 | F32: =IF($B$17=1,0,(VLOOKUP($G$19,Tablas!$A$652:$H$675,7,TRUE))) -> 6501.0064 | G32: =IF($B$17=1,0,(VLOOKUP($G$19,Tablas!$A$652:$H$675,8,TRUE))) -> 4887.2488
A33: Primas Hijos | B33: n/a | C33: =IF($G$17=0,0,(VLOOKUP($G$17,Tablas!$A$676:$H$678,4,TRUE))) -> 5264.252 | D33: =IF($G$17=0,0,(VLOOKUP($G$17,Tablas!$A$676:$H$678,5,TRUE))) -> 2788.4444 | E33: =IF($G$17=0,0,(VLOOKUP($G$17,Tablas!$A$676:$H$678,6,TRUE))) -> 2497.6462 | F33: =IF($G$17=0,0,(VLOOKUP($G$17,Tablas!$A$676:$H$678,7,TRUE))) -> 2094.2068 | G33: =IF($G$17=0,0,(VLOOKUP($G$17,Tablas!$A$676:$H$678,8,TRUE))) -> 1559.7358
A34: Rider: Complicaciones de Maternidad | B34: n/a | C34: =+IF($B$1=FALSE,0,Tablas!D$679) -> 258.615 | D34: =+IF($B$1=FALSE,0,Tablas!E$679) -> 258.615 | E34: =+IF($B$1=FALSE,0,Tablas!F$679) -> 258.615 | F34: =+IF($B$1=FALSE,0,Tablas!G$679) -> 258.615 | G34: =+IF($B$1=FALSE,0,Tablas!H$679) -> 258.615
A35: Rider: Trasplante Organos | B35: n/a | C35: =IF($C$1=FALSE,0,Tablas!D$680) -> 344.82 | D35: =IF($C$1=FALSE,0,Tablas!E$680) -> 344.82 | E35: =IF($C$1=FALSE,0,Tablas!F$680) -> 344.82 | F35: =IF($C$1=FALSE,0,Tablas!G$680) -> 344.82 | G35: =IF($C$1=FALSE,0,Tablas!H$680) -> 344.82
A36: TOTAL PRIMA NETA | B36: n/a | C36: =SUM(C31:C35) -> 26089.0812 | D36: 20845.5184 | E36: 15932.9828 | F36: 13508.8982 | G36: 10311.2674
A37: Costo Administrativo Annual | B37: n/a | C37: =Tablas!$W$2 -> 86 | D37: =Tablas!$W$2 -> 86 | E37: =Tablas!$W$2 -> 86 | F37: =Tablas!$W$2 -> 86 | G37: =Tablas!$W$2 -> 86
A38: GRAN TOTAL : | B38: n/a | C38: =SUM(C36:C37) -> 26175.0812 | D38: =SUM(D36:D37) -> 20931.5184 | E38: =SUM(E36:E37) -> 16018.9828 | F38: =SUM(F36:F37) -> 13594.8982 | G38: =SUM(G36:G37) -> 10397.2674
A40: TARIFAS SEMESTRALES
A41: Prima de Titular | B41: n/a | C41: =VLOOKUP($B$19,Tablas!$A$688:$H$711,4,TRUE) -> 4339.812568 | D41: =VLOOKUP($B$19,Tablas!$A$688:$H$711,5,TRUE) -> 3635.598176 | E41: =VLOOKUP($B$19,Tablas!$A$688:$H$711,6,TRUE) -> 2710.250718 | F41: =VLOOKUP($B$19,Tablas!$A$688:$H$711,7,TRUE) -> 2284.4325 | G41: =VLOOKUP($B$19,Tablas!$A$688:$H$711,8,TRUE) -> 1728.249334
A42: Prima de Cónyuge | B42: n/a | C42: =IF($B$17=1,0,(VLOOKUP($G$19,Tablas!$A$688:$H$711,4,TRUE))) -> 6377.526358 | D42: =IF($B$17=1,0,(VLOOKUP($G$19,Tablas!$A$688:$H$711,5,TRUE))) -> 5614.830494 | E42: =IF($B$17=1,0,(VLOOKUP($G$19,Tablas!$A$688:$H$711,6,TRUE))) -> 4090.65713 | F42: =IF($B$17=1,0,(VLOOKUP($G$19,Tablas!$A$688:$H$711,7,TRUE))) -> 3445.533392 | G42: =IF($B$17=1,0,(VLOOKUP($G$19,Tablas!$A$688:$H$711,8,TRUE))) -> 2590.241864
A43: Primas Hijos | B43: n/a | C43: =IF($G$17=0,0,(VLOOKUP($G$17,Tablas!$A$712:$H$714,4,TRUE))) -> 2790.05356 | D43: =IF($G$17=0,0,(VLOOKUP($G$17,Tablas!$A$712:$H$714,5,TRUE))) -> 1477.875532 | E43: =IF($G$17=0,0,(VLOOKUP($G$17,Tablas!$A$712:$H$714,6,TRUE))) -> 1323.752486 | F43: =IF($G$17=0,0,(VLOOKUP($G$17,Tablas!$A$712:$H$714,7,TRUE))) -> 1109.929604 | G43: =IF($G$17=0,0,(VLOOKUP($G$17,Tablas!$A$712:$H$714,8,TRUE))) -> 826.659974
A44: Rider: Complicaciones de Maternidad | B44: n/a | C44: =+IF($B$1=FALSE,0,Tablas!D$715) -> 137.06595 | D44: =+IF($B$1=FALSE,0,Tablas!E$715) -> 137.06595 | E44: =+IF($B$1=FALSE,0,Tablas!F$715) -> 137.06595 | F44: =+IF($B$1=FALSE,0,Tablas!G$715) -> 137.06595 | G44: =+IF($B$1=FALSE,0,Tablas!H$715) -> 137.06595
A45: Rider: Trasplante Organos | B45: n/a | C45: =IF($C$1=FALSE,0,Tablas!D$716) -> 182.7546 | D45: =IF($C$1=FALSE,0,Tablas!E$716) -> 182.7546 | E45: =IF($C$1=FALSE,0,Tablas!F$716) -> 182.7546 | F45: =IF($C$1=FALSE,0,Tablas!G$716) -> 182.7546 | G45: =IF($C$1=FALSE,0,Tablas!H$716) -> 182.7546
A46: TOTAL PRIMA NETA | B46: n/a | C46: =SUM(C41:C45) -> 13827.21304 | D46: 11048.12475 | E46: 8444.480884 | F46: 7159.716046 | G46: 5464.971722
A47: Costo Administrativo Anual | B47: n/a | C47: =Tablas!$W$2 -> 86 | D47: =Tablas!$W$2 -> 86 | E47: =Tablas!$W$2 -> 86 | F47: =Tablas!$W$2 -> 86 | G47: =Tablas!$W$2 -> 86
A48: TOTAL (1ra Cuota) | B48: n/a | C48: =SUM(C46:C47) -> 13913.21304 | D48: =SUM(D46:D47) -> 11134.12475 | E48: =SUM(E46:E47) -> 8530.480884 | F48: =SUM(F46:F47) -> 7245.716046 | G48: =SUM(G46:G47) -> 5550.971722
A49: TOTAL (2da Cuota) | B49: n/a | C49: =C46 -> 13827.21304 | D49: =D46 -> 11048.12475 | E49: 8444.480884 | F49: 7159.716046 | G49: 5464.971722
A50: GRAN TOTAL | B50: n/a | C50: =SUM(C48:C49) -> 27740.42607 | D50: =SUM(D48:D49) -> 22182.2495 | E50: 16974.96177 | F50: 14405.43209 | G50: 11015.94344
A53: Este presupuesto solamente tiene carácter informativo y en ningún momento expresa compromiso legal para suministrarle cobertura de seguro. La emisión de una póliza de seguro Bupa está sujeta a todas las evaluaciones de riesgo por parte de Bupa y a la recepción de todos los pagos de prima requeridos.

Sheet Bupa Essential Care
B1: FALSE | C1: FALSE | I1: RESUMEN DE BENEFICIOS | V1: RESUMEN DE BENEFICIOS
A5: Cotización de Seguro Médico Internacional Bupa Essential Care Tarifas en US$ | Validas: 1 de enero de 2024 | G5: REGIÓN
G7: =IF('INGRESO DE DATOS'!W14="BOLIVIA","BOLIVIA",'INGRESO DE DATOS'!W14) -> BOLIVIA
A13: Nombre del asegurado principal | B13: =+'INGRESO DE DATOS'!$C$36 -> John Doe
A15: Broker/Agente | B15: =+'INGRESO DE DATOS'!$C$44 -> Agencia
A17: Número de Adultos en la Póliza | B17: =+'INGRESO DE DATOS'!$C$38 -> 2 | D17: Dependientes (menores de 24 años) | G17: =+'INGRESO DE DATOS'!$G$38 -> 2
D18: =IF('INGRESO DE DATOS'!$P$2=TRUE, "Cotización para dependiente de 24 años","") -> 
A19: Edad del Titular | B19: =+'INGRESO DE DATOS'!$C$40 -> 32 | D19: Edad del Cónyuge | G19: =+'INGRESO DE DATOS'!$G$40 -> 46
D21: Fecha de Cotización: | F21: =NOW() -> 2024-03-04T10:52:31.900
A25: DEdUCIBLES | B25: PLAN 1 | C25: PLAN 2 | D25: PLAN 3 | E25: PLAN 4 | F25: PLAN 5 | G25: PLAN 6
A26: Dentro del pais de residencia | B26: n/a | C26: 1000 | D26: 2000 | E26: 5000 | F26: 10000 | G26: 20000
A27: Fuera del pais de residencia | B27: n/a | C27: 2000 | D27: 3000 | E27: 5000 | F27: 10000 | G27: 20000
A30: TARIFAS ANUALES
A31: Prima de Titular | B31: n/a | C31: =VLOOKUP($B$19,Tablas!$A$725:$H$748,4,TRUE) -> 6819.3902 | D31: =VLOOKUP($B$19,Tablas!$A$725:$H$748,5,TRUE) -> 5467.6958 | E31: =VLOOKUP($B$19,Tablas!$A$725:$H$748,6,TRUE) -> 4258.527 | F31: =VLOOKUP($B$19,Tablas!$A$725:$H$748,7,TRUE) -> 3586.128 | G31: =VLOOKUP($B$19,Tablas!$A$725:$H$748,8,TRUE) -> 2704.5382
A32: Prima de Cónyuge | B32: n/a | C32: =IF($B$17=1,0,(VLOOKUP($G$19,Tablas!$A$725:$H$748,4,TRUE))) -> 10023.9174 | D32: =IF($B$17=1,0,(VLOOKUP($G$19,Tablas!$A$725:$H$748,5,TRUE))) -> 8582.5698 | E32: =IF($B$17=1,0,(VLOOKUP($G$19,Tablas!$A$725:$H$748,6,TRUE))) -> 6428.5942 | F32: =IF($B$17=1,0,(VLOOKUP($G$19,Tablas!$A$725:$H$748,7,TRUE))) -> 5413.674 | G32: =IF($B$17=1,0,(VLOOKUP($G$19,Tablas!$A$725:$H$748,8,TRUE))) -> 4071.1748
A33: Primas Hijos | B33: n/a | C33: =IF($G$17=0,0,(VLOOKUP($G$17,Tablas!$A$749:$H$751,4,TRUE))) -> 4390.708 | D33: =IF($G$17=0,0,(VLOOKUP($G$17,Tablas!$A$749:$H$751,5,TRUE))) -> 2327.535 | E33: =IF($G$17=0,0,(VLOOKUP($G$17,Tablas!$A$749:$H$751,6,TRUE))) -> 2089.6092 | F33: =IF($G$17=0,0,(VLOOKUP($G$17,Tablas!$A$749:$H$751,7,TRUE))) -> 1743.6398 | G33: =IF($G$17=0,0,(VLOOKUP($G$17,Tablas!$A$749:$H$751,8,TRUE))) -> 1310.316
A34: Rider: Complicaciones de Maternidad | B34: n/a | C34: =+IF($B$1=FALSE,0,Tablas!D$752) -> 0 | D34: =+IF($B$1=FALSE,0,Tablas!E$752) -> 0 | E34: =+IF($B$1=FALSE,0,Tablas!F$752) -> 0 | F34: =+IF($B$1=FALSE,0,Tablas!G$752) -> 0 | G34: =+IF($B$1=FALSE,0,Tablas!H$752) -> 0
A35: Rider: Trasplante Organos | B35: n/a | C35: =IF($C$1=FALSE,0,Tablas!D$753) -> 0 | D35: =IF($C$1=FALSE,0,Tablas!E$753) -> 0 | E35: =IF($C$1=FALSE,0,Tablas!F$753) -> 0 | F35: =IF($C$1=FALSE,0,Tablas!G$753) -> 0 | G35: =IF($C$1=FALSE,0,Tablas!H$753) -> 0
A36: TOTAL PRIMA NETA | B36: n/a | C36: =SUM(C31:C35) -> 21234.0156 | D36: 16377.8006 | E36: 12776.7304 | F36: 10743.4418 | G36: 8086.029
A37: Costo Administrativo Annual | B37: n/a | C37: =Tablas!$W$2 -> 86 | D37: =Tablas!$W$2 -> 86 | E37: =Tablas!$W$2 -> 86 | F37: =Tablas!$W$2 -> 86 | G37: =Tablas!$W$2 -> 86
A38: GRAN TOTAL : | B38: n/a | C38: =SUM(C36:C37) -> 21320.0156 | D38: =SUM(D36:D37) -> 16463.8006 | E38: =SUM(E36:E37) -> 12862.7304 | F38: =SUM(F36:F37) -> 10829.4418 | G38: =SUM(G36:G37) -> 8172.029
A41: TARIFAS SEMESTRALES
A42: Prima de Titular | B42: n/a | C42: =VLOOKUP($B$19,Tablas!$A$760:$H$783,4,TRUE) -> 3614.276806 | D42: =VLOOKUP($B$19,Tablas!$A$760:$H$783,5,TRUE) -> 2897.878774 | E42: =VLOOKUP($B$19,Tablas!$A$760:$H$783,6,TRUE) -> 2257.01931 | F42: =VLOOKUP($B$19,Tablas!$A$760:$H$783,7,TRUE) -> 1900.64784 | G42: =VLOOKUP($B$19,Tablas!$A$760:$H$783,8,TRUE) -> 1433.405246
A43: Prima de Cónyuge | B43: n/a | C43: =IF($B$17=1,0,(VLOOKUP($G$19,Tablas!$A$760:$H$783,4,TRUE))) -> 5312.676222 | D43: =IF($B$17=1,0,(VLOOKUP($G$19,Tablas!$A$760:$H$783,5,TRUE))) -> 4548.761994 | E43: =IF($B$17=1,0,(VLOOKUP($G$19,Tablas!$A$760:$H$783,6,TRUE))) -> 3407.154926 | F43: =IF($B$17=1,0,(VLOOKUP($G$19,Tablas!$A$760:$H$783,7,TRUE))) -> 2869.24722 | G43: =IF($B$17=1,0,(VLOOKUP($G$19,Tablas!$A$760:$H$783,8,TRUE))) -> 2157.722644
A44: Primas Hijos | B44: n/a | C44: =IF($G$17=0,0,(VLOOKUP($G$17,Tablas!$A$784:$H$786,4,TRUE))) -> 2327.07524 | D44: =IF($G$17=0,0,(VLOOKUP($G$17,Tablas!$A$784:$H$786,5,TRUE))) -> 1233.59355 | E44: =IF($G$17=0,0,(VLOOKUP($G$17,Tablas!$A$784:$H$786,6,TRUE))) -> 1107.492876 | F44: =IF($G$17=0,0,(VLOOKUP($G$17,Tablas!$A$784:$H$786,7,TRUE))) -> 924.129094 | G44: =IF($G$17=0,0,(VLOOKUP($G$17,Tablas!$A$784:$H$786,8,TRUE))) -> 694.46748
A45: Rider: Complicaciones de Maternidad | B45: n/a | C45: =+IF($B$1=FALSE,0,Tablas!D$787) -> 0 | D45: =+IF($B$1=FALSE,0,Tablas!E$787) -> 0 | E45: =+IF($B$1=FALSE,0,Tablas!F$787) -> 0 | F45: =+IF($B$1=FALSE,0,Tablas!G$787) -> 0 | G45: =+IF($B$1=FALSE,0,Tablas!H$787) -> 0
A46: Rider: Trasplante Organos | B46: n/a | C46: =IF($C$1=FALSE,0,Tablas!D$788) -> 0 | D46: =IF($C$1=FALSE,0,Tablas!E$788) -> 0 | E46: =IF($C$1=FALSE,0,Tablas!F$788) -> 0 | F46: =IF($C$1=FALSE,0,Tablas!G$788) -> 0 | G46: =IF($C$1=FALSE,0,Tablas!H$788) -> 0
A47: TOTAL PRIMA NETA | B47: n/a | C47: =SUM(C42:C46) -> 11254.02827 | D47: 8680.234318 | E47: 6771.667112 | F47: 5694.024154 | G47: 4285.59537
A48: Costo Administrativo Anual | B48: n/a | C48: =Tablas!$W$2 -> 86 | D48: =Tablas!$W$2 -> 86 | E48: =Tablas!$W$2 -> 86 | F48: =Tablas!$W$2 -> 86 | G48: =Tablas!$W$2 -> 86
A49: TOTAL (1ra Cuota) | B49: n/a | C49: =SUM(C47:C48) -> 11340.02827 | D49: =SUM(D47:D48) -> 8766.234318 | E49: =SUM(E47:E48) -> 6857.667112 | F49: =SUM(F47:F48) -> 5780.024154 | G49: =SUM(G47:G48) -> 4371.59537
A50: TOTAL (2da Cuota) | B50: n/a | C50: =C47 -> 11254.02827 | D50: =D47 -> 8680.234318 | E50: 6771.667112 | F50: 5694.024154 | G50: 4285.59537
A51: GRAN TOTAL | B51: n/a | C51: =SUM(C49:C50) -> 22594.05654 | D51: =SUM(D49:D50) -> 17446.46864 | E51: 13629.33422 | F51: 11474.04831 | G51: 8657.19074
A55: Este presupuesto solamente tiene carácter informativo y en ningún momento expresa compromiso legal para suministrarle cobertura de seguro. La emisión de una póliza de seguro Bupa está sujeta a todas las evaluaciones de riesgo por parte de Bupa y a la recepción de todos los pagos de prima requeridos.

Sheet Bupa Crititcal
B1: TRUE | J1: RESUMEN DE BENEFICIOS | W1: RESUMEN DE BENEFICIOS | AJ1: RESUMEN DE BENEFICIOS
A5: Cotización de Seguro Médico Internacional Bupa Critical Care Tarifas en US$ | Validas: 1 de enero de 2024 | H5: REGIÓN
H7: =IF('INGRESO DE DATOS'!W14="BOLIVIA","BOLIVIA",'INGRESO DE DATOS'!W14) -> BOLIVIA
A13: Nombre del asegurado principal | B13: =+'INGRESO DE DATOS'!$C$36 -> John Doe
A15: Broker/Agente | B15: =+'INGRESO DE DATOS'!$C$44 -> Agencia
A17: Número de Adultos en la Póliza | B17: =+'INGRESO DE DATOS'!$C$38 -> 2 | D17: Dependientes (menores de 24 años) | H17: =+'INGRESO DE DATOS'!$G$38 -> 2
D18: =IF('INGRESO DE DATOS'!$P$2=TRUE, "Cotización para dependiente de 24 años","") -> 
A19: Edad del Titular | B19: =+'INGRESO DE DATOS'!$C$40 -> 32 | D19: Edad del Cónyuge | H19: =+'INGRESO DE DATOS'!$G$40 -> 46
D21: Edad del adulto mayor en la pareja | H21: =IF(B19>=H19,B19,H19) -> 46
A24: CONDICION CRÍTICA CUBIERTA | D24: MÁXIMO (Por asegurado, por año Póliza) | F24: TRASPLANTE DE ÓRGANOS
F26: Tipo de trasplante | H26: Máximo Vitalicio por persona
A27: Enfermedades neurológicas y accidentes cerebro-vasculares | D27: 150000
A29: Cirugías cardíacas y angioplastías | D29: 150000 | F29: Corazón | H29: 300000
F30: Corazón y Pulmón (simultáneamente) | H30: 300000
A31: Tratamiento de cáncer | D31: 200000 | F31: Pulmón | H31: 250000
F32: Pancreas | H32: 250000
A33: Trauma grave (Politraumatismos) | D33: 150000 | F33: Pancreas y Riñón (simultáneamente) | H33: 300000
F34: Riñón | H34: 200000
A35: Insuficiencia renal crónica (Diálisis) | D35: 100000 | F35: Hígado | H35: 200000
F36: Médula ósea | H36: 250000
A37: Quemaduras graves | D37: 300000 | F37: La cobertura de trasplante de órganos está limitada a la Red de Proveedores para Procedimiento de Trasplante de la Compañía y no se proporcionará cobertura en proveedores fuera de esta Red especializada.
A38: Desorden infeccioso grave (Septicemia) | D38: 150000
A41: Deducibles | C41: PLAN 1 | D41: PLAN 2 | E41: PLAN 3 | F41: PLAN 4 | G41: PLAN 5 | H41: PLAN 6
A42: Dentro del pais de residencia | C42: 2000 | D42: 3500 | E42: 5000 | F42: 10000 | G42: 20000 | H42: 50000
A43: Fuera del pais de residencia | C43: 2000 | D43: 3500 | E43: 5000 | F43: 10000 | G43: 20000 | H43: 50000
A45: TARIFAS ANUALES
A46: Prima por plan individual | C46: =IF((($B$17+$H$17)=1),(VLOOKUP($H$21,Tablas!$A$799:$T$800,3,TRUE)),0) -> 0 | D46: =IF((($B$17+$H$17)=1),(VLOOKUP($H$21,Tablas!$A$799:$T$800,6,TRUE)),0) -> 0 | E46: =IF((($B$17+$H$17)=1),(VLOOKUP($H$21,Tablas!$A$799:$T$800,9,TRUE)),0) -> 0 | F46: =IF((($B$17+$H$17)=1),(VLOOKUP($H$21,Tablas!$A$799:$T$800,12,TRUE)),0) -> 0 | G46: =IF((($B$17+$H$17)=1),(VLOOKUP($H$21,Tablas!$A$799:$T$800,15,TRUE)),0) -> 0 | H46: =IF((($B$17+$H$17)=1),(VLOOKUP($H$21,Tablas!$A$799:$T$800,18,TRUE)),0) -> 0
A47: Prima por plan para 2 personas | C47: =IF((($B$17+$H$17)=2),(VLOOKUP($H$21,Tablas!$A$799:$T$800,4,TRUE)),0) -> 0 | D47: =IF((($B$17+$H$17)=2),(VLOOKUP($H$21,Tablas!$A$799:$T$800,7,TRUE)),0) -> 0 | E47: =IF((($B$17+$H$17)=2),(VLOOKUP($H$21,Tablas!$A$799:$T$800,10,TRUE)),0) -> 0 | F47: =IF((($B$17+$H$17)=2),(VLOOKUP($H$21,Tablas!$A$799:$T$800,13,TRUE)),0) -> 0 | G47: =IF((($B$17+$H$17)=2),(VLOOKUP($H$21,Tablas!$A$799:$T$800,16,TRUE)),0) -> 0 | H47: =IF((($B$17+$H$17)=2),(VLOOKUP($H$21,Tablas!$A$799:$T$800,19,TRUE)),0) -> 0
A48: Prima por plan familiar | C48: =IF((($B$17+$H$17)>=3),(VLOOKUP($H$21,Tablas!$A$799:$T$800,5,TRUE)),0) -> 9499.791 | D48: =IF((($B$17+$H$17)>=3),(VLOOKUP($H$21,Tablas!$A$799:$T$800,8,TRUE)),0) -> 7876.8382 | E48: =IF((($B$17+$H$17)>=3),(VLOOKUP($H$21,Tablas!$A$799:$T$800,11,TRUE)),0) -> 6897.5494 | F48: =IF((($B$17+$H$17)>=3),(VLOOKUP($H$21,Tablas!$A$799:$T$800,14,TRUE)),0) -> 5129.7722 | G48: =IF((($B$17+$H$17)>=3),(VLOOKUP($H$21,Tablas!$A$799:$T$800,17,TRUE)),0) -> 3552.7954 | H48: =IF((($B$17+$H$17)>=3),(VLOOKUP($H$21,Tablas!$A$799:$T$800,20,TRUE)),0) -> 1866.6256
A49: TOTAL PRIMA NETA | C49: =SUM(C46:C48) -> 9499.791 | D49: =SUM(D46:D48) -> 7876.8382 | E49: 6897.5494 | F49: 5129.7722 | G49: 3552.7954 | H49: 1866.6256
A50: Costo Administrativo Anual | C50: =Tablas!$W$2 -> 86 | D50: =Tablas!$W$2 -> 86 | E50: =Tablas!$W$2 -> 86 | F50: =Tablas!$W$2 -> 86 | G50: =Tablas!$W$2 -> 86 | H50: =Tablas!$W$2 -> 86
A51: GRAN TOTAL | C51: =SUM(C49:C50) -> 9585.791 | D51: 7962.8382 | E51: 6983.5494 | F51: 5215.7722 | G51: 3638.7954 | H51: 1952.6256
A53: Este presupuesto solamente tiene carácter informativo y en ningún momento expresa compromiso legal para suministrarle cobertura de seguro. La emisión de una póliza de seguro Bupa está sujeta a todas las evaluaciones de riesgo por parte de Bupa y a la recepción de todos los pagos de prima requeridos.

Sheet Resumen tarifas anuales
A5: Cotización de Seguro Médico Internacional Bupa Critical Care Tarifas en US$ | Validas: 1 de enero de 2024 | H5: REGIÓN
H7: =IF('INGRESO DE DATOS'!W14="PERU2020","Perú",'INGRESO DE DATOS'!W14) -> Bolivia
A13: Nombre del asegurado principal | B13: =+'INGRESO DE DATOS'!$C$36 -> John Doe
A15: Broker/Agente | B15: =+'INGRESO DE DATOS'!$C$44 -> Agencia
A17: Número de Adultos en la Póliza | B17: =+'INGRESO DE DATOS'!$C$38 -> 2 | F17: Dependientes (menores de 24 años) | H17: =+'INGRESO DE DATOS'!$G$38 -> 2
F18: =IF('INGRESO DE DATOS'!$P$2=TRUE, "Cotización para dependiente de 24 años","") -> 
A19: Edad del Titular | B19: =+'INGRESO DE DATOS'!$C$40 -> 32 | F19: Edad del Cónyuge | H19: =+'INGRESO DE DATOS'!$G$40 -> 46
A22: DEDUCIBLES | C22: PLAN 1 | D22: PLAN 2 | E22: PLAN 3 | F22: PLAN 4 | G22: PLAN 5 | H22: PLAN 6
A23: Dentro del pais de residencia | C23: n/a | D23: 1000 | E23: 2000 | F23: 5000 | G23: 10000 | H23: 20000
A24: Fuera del pais de residencia | C24: n/a | D24: 2000 | E24: 3000 | F24: 5000 | G24: 10000 | H24: 20000
A26: PRODUCTOS | C26: TARIFAS ANUALES
A27: Bupa Diamond Care (Mundial) | C27: n/a | D27: ='Bupa Diamond Care (Mundial)'!H41 -> 50925.1114 | E27: ='Bupa Diamond Care (Mundial)'!I41 -> 36382.9026 | F27: ='Bupa Diamond Care (Mundial)'!J41 -> 28144.0034 | G27: ='Bupa Diamond Care (Mundial)'!K41 -> 21236.1094 | H27: ='Bupa Diamond Care (Mundial)'!L41 -> 16768.3916
A28: Bupa Diamond Care (Latino América) | C28: n/a | D28: ='Bupa Diamond Care (LA)'!H41 -> 37187.4826 | E28: ='Bupa Diamond Care (LA)'!I41 -> 26534.8434 | F28: ='Bupa Diamond Care (LA)'!J41 -> 20611.9852 | G28: ='Bupa Diamond Care (LA)'!K41 -> 15576.4638 | H28: ='Bupa Diamond Care (LA)'!L41 -> 12307.5702
A29: Bupa Complete Care (Mundial) | C29: n/a | D29: ='Bupa Complete Care (Mundial)'!H41 -> 43111.4902 | E29: ='Bupa Complete Care (Mundial)'!I41 -> 31703.6952 | F29: ='Bupa Complete Care (Mundial)'!J41 -> 24247.5374 | G29: ='Bupa Complete Care (Mundial)'!K41 -> 18391.3444 | H29: ='Bupa Complete Care (Mundial)'!L41 -> 14067.3016
A30: Bupa Complete Care (Latino América) | C30: n/a | D30: ='Bupa Complete Care (LA)'!H41 -> 31764.6134 | E30: ='Bupa Complete Care (LA)'!I41 -> 23345.2584 | F30: ='Bupa Complete Care (LA)'!J41 -> 17949.9748 | G30: ='Bupa Complete Care (LA)'!K41 -> 13628.2308 | H30: ='Bupa Complete Care (LA)'!L41 -> 10416.8072
A31: Bupa Advantage Care (Mundial) | C31: n/a | D31: ='Bupa Advantage Care (Mundial)'!C38 -> 34417.4286 | E31: ='Bupa Advantage Care (Mundial)'!D38 -> 26525.6482 | F31: ='Bupa Advantage Care (Mundial)'!E38 -> 20352.2208 | G31: ='Bupa Advantage Care (Mundial)'!F38 -> 15904.0428 | H31: ='Bupa Advantage Care (Mundial)'!G38 -> 12178.8374
A32: Bupa Advantage Care (Latino América) | C32: n/a | D32: ='Bupa Advantage Care (LA)'!C38 -> 25119.932 | E32: ='Bupa Advantage Care (LA)'!D38 -> 19239.6016 | F32: ='Bupa Advantage Care (LA)'!E38 -> 14683.38 | G32: ='Bupa Advantage Care (LA)'!F38 -> 11376.5562 | H32: ='Bupa Advantage Care (LA)'!G38 -> 8595.0082
A33: Bupa Secure Care | C33: n/a | D33: ='Bupa Secure Care'!C38 -> 26175.0812 | E33: ='Bupa Secure Care'!D38 -> 20931.5184 | F33: ='Bupa Secure Care'!E38 -> 16018.9828 | G33: ='Bupa Secure Care'!F38 -> 13594.8982 | H33: ='Bupa Secure Care'!G38 -> 10397.2674
A34: Bupa Essential Care | C34: n/a | D34: ='Bupa Essential Care'!C38 -> 21320.0156 | E34: ='Bupa Essential Care'!D38 -> 16463.8006 | F34: ='Bupa Essential Care'!E38 -> 12862.7304 | G34: ='Bupa Essential Care'!F38 -> 10829.4418 | H34: ='Bupa Essential Care'!G38 -> 8172.029
A36: BUPA CRITICAL CARE
A37: DEDUCIBLES | C37: PLAN 1 | D37: PLAN 2 | E37: PLAN 3 | F37: PLAN 4 | G37: PLAN 5 | H37: PLAN 6
A38: Dentro del pais de residencia | C38: 2000 | D38: 3500 | E38: 5000 | F38: 10000 | G38: 20000 | H38: 50000
A39: Fuera del pais de residencia | C39: 2000 | D39: 3500 | E39: 5000 | F39: 10000 | G39: 20000 | H39: 50000
C42: TARIFAS ANUALES
A43: Bupa Critical Care | C43: ='Bupa Crititcal'!C51 -> 9585.791 | D43: ='Bupa Crititcal'!D51 -> 7962.8382 | E43: ='Bupa Crititcal'!E51 -> 6983.5494 | F43: ='Bupa Crititcal'!F51 -> 5215.7722 | G43: ='Bupa Crititcal'!G51 -> 3638.7954 | H43: ='Bupa Crititcal'!H51 -> 1952.6256

Sheet Comparacion de Beneficios (hidden)
A1: 2023 BUPA CARE COMPARACION DE BENEFICIOS

Sheet Tablas (hidden)
K1: Critical | L1: Diamond | M1: Complete | N1: Advantage | O1: Secure | P1: Essential
B2: REGIÓN | C2: ='INGRESO DE DATOS'!W14 -> Bolivia | E2: FACTOR SEMESTRAL : | G2: 0.53 | I2: TOTAL DISCOUNT | K2: ='INGRESO DE DATOS'!O42 -> 1 | L2: ='INGRESO DE DATOS'!P42 -> 1 | M2: ='INGRESO DE DATOS'!Q42 -> 1 | N2: ='INGRESO DE DATOS'!R42 -> 1 | O2: ='INGRESO DE DATOS'!S42 -> 1 | P2: ='INGRESO DE DATOS'!T42 -> 1 | T2: Impuesto (14.94%) | V2: =14.94/100+1 -> 1.1494 | W2: =ROUND(V2*75,0) -> 86
A5: BUPA DIAMOND CARE (MUNDIAL) | K5: ORIGINAL RATES | Q5: DISCOUNTS APPLIED
A6: TARIFAS ANUALES
A7: EDAD
C8: DW1 | D8: DW2 | E8: DW3 | F8: DW4 | G8: DW5 | H8: DW6
A9: 18 | B9: 18-24 | D9: =Q9*$V$2 -> 15506.5554 | E9: =R9*$V$2 -> 10434.2532 | F9: 7446.9626 | G9: 5148.1626 | H9: 4052.7844 | K9: =Bolivia!D9 -> 13491 | L9: =Bolivia!E9 -> 9078 | M9: =Bolivia!F9 -> 6479 | N9: =Bolivia!G9 -> 4479 | O9: =Bolivia!H9 -> 3526 | Q9: =(K9-50)*$L$2+50 -> 13491 | R9: =(L9-50)*$L$2+50 -> 9078 | S9: 6479 | T9: 4479 | U9: 3526
A10: 25 | B10: 25-29 | D10: =Q10*$V$2 -> 16264.01 | E10: =R10*$V$2 -> 11531.9302 | F10: =S10*$V$2 -> 8256.1402 | G10: =T10*$V$2 -> 5705.6216 | H10: =U10*$V$2 -> 4490.7058 | K10: =Bolivia!D10 -> 14150 | L10: =Bolivia!E10 -> 10033 | M10: =Bolivia!F10 -> 7183 | N10: =Bolivia!G10 -> 4964 | O10: =Bolivia!H10 -> 3907 | Q10: =(K10-50)*$L$2+50 -> 14150 | R10: =(L10-50)*$L$2+50 -> 10033 | S10: =(M10-50)*$L$2+50 -> 7183 | T10: =(N10-50)*$L$2+50 -> 4964 | U10: =(O10-50)*$L$2+50 -> 3907
A11: 30 | B11: 30-34 | D11: 16909.9728 | E11: 12369.8428 | F11: 9234.2796 | G11: 6836.6312 | H11: 5387.2378 | K11: =Bolivia!D11 -> 14712 | L11: =Bolivia!E11 -> 10762 | M11: =Bolivia!F11 -> 8034 | N11: =Bolivia!G11 -> 5948 | O11: =Bolivia!H11 -> 4687 | Q11: 14712 | R11: 10762 | S11: 8034 | T11: 5948 | U11: 4687
A12: 35 | B12: 35-39 | D12: 18943.2614 | E12: 13844.523 | F12: 10341.1518 | G12: 7664.1992 | H12: 6040.097 | K12: =Bolivia!D12 -> 16481 | L12: =Bolivia!E12 -> 12045 | M12: =Bolivia!F12 -> 8997 | N12: =Bolivia!G12 -> 6668 | O12: =Bolivia!H12 -> 5255 | Q12: 16481 | R12: 12045 | S12: 8997 | T12: 6668 | U12: 5255
A13: 40 | B13: 40-44 | D13: 22692.6042 | E13: 15653.6786 | F13: 11867.555 | G13: 8700.958 | H13: 6852.7228 | K13: =Bolivia!D13 -> 19743 | L13: =Bolivia!E13 -> 13619 | M13: =Bolivia!F13 -> 10325 | N13: =Bolivia!G13 -> 7570 | O13: =Bolivia!H13 -> 5962 | Q13: 19743 | R13: 13619 | S13: 10325 | T13: 7570 | U13: 5962
A14: 45 | B14: 45-49 | D14: 25362.6604 | E14: 17492.7186 | F14: 13269.823 | G14: 9722.7746 | H14: 7663.0498 | K14: =Bolivia!D14 -> 22066 | L14: =Bolivia!E14 -> 15219 | M14: =Bolivia!F14 -> 11545 | N14: =Bolivia!G14 -> 8459 | O14: =Bolivia!H14 -> 6667 | Q14: 22066 | R14: 15219 | S14: 11545 | T14: 8459 | U14: 6667
A15: 50 | B15: 50-54 | D15: 33502.7112 | E15: 23685.6858 | F15: 17867.423 | G15: 14182.4466 | H15: 11183.662 | K15: =Bolivia!D15 -> 29148 | L15: =Bolivia!E15 -> 20607 | M15: =Bolivia!F15 -> 15545 | N15: =Bolivia!G15 -> 12339 | O15: =Bolivia!H15 -> 9730 | Q15: 29148 | R15: 20607 | S15: 15545 | T15: 12339 | U15: 9730
A16: 55 | B16: 55-59 | D16: 35644.0434 | E16: 25213.2384 | F16: 19016.823 | G16: 15088.1738 | H16: 11903.1864 | K16: =Bolivia!D16 -> 31011 | L16: =Bolivia!E16 -> 21936 | M16: =Bolivia!F16 -> 16545 | N16: =Bolivia!G16 -> 13127 | O16: =Bolivia!H16 -> 10356 | Q16: 31011 | R16: 21936 | S16: 16545 | T16: 13127 | U16: 10356
A17: 60 | B17: 60 | D17: 38831.3296 | E17: 27506.2914 | F17: 21874.2314 | G17: 18172.014 | H17: 14785.8816 | K17: =Bolivia!D17 -> 33784 | L17: =Bolivia!E17 -> 23931 | M17: =Bolivia!F17 -> 19031 | N17: =Bolivia!G17 -> 15810 | O17: =Bolivia!H17 -> 12864 | Q17: 33784 | R17: 23931 | S17: 19031 | T17: 15810 | U17: 12864
A18: 61 | B18: 61 | D18: 42377.2286 | E18: 30010.834 | F18: 23862.6934 | G18: 19846.6898 | H18: 16141.0242 | K18: =Bolivia!D18 -> 36869 | L18: =Bolivia!E18 -> 26110 | M18: =Bolivia!F18 -> 20761 | N18: =Bolivia!G18 -> 17267 | O18: =Bolivia!H18 -> 14043 | Q18: 36869 | R18: 26110 | S18: 20761 | T18: 17267 | U18: 14043
A19: 62 | B19: 62 | D19: 46390.9334 | E19: 32875.1388 | F19: 26127.0114 | G19: 21717.913 | H19: 17673.1744 | K19: =Bolivia!D19 -> 40361 | L19: =Bolivia!E19 -> 28602 | M19: =Bolivia!F19 -> 22731 | N19: =Bolivia!G19 -> 18895 | O19: =Bolivia!H19 -> 15376 | Q19: 40361 | R19: 28602 | S19: 22731 | T19: 18895 | U19: 15376
A20: 63 | B20: 63 | D20: 49329.9492 | E20: 34952.1046 | F20: 27777.5498 | G20: 23101.7906 | H20: 18790.3912 | K20: =Bolivia!D20 -> 42918 | L20: =Bolivia!E20 -> 30409 | M20: =Bolivia!F20 -> 24167 | N20: =Bolivia!G20 -> 20099 | O20: =Bolivia!H20 -> 16348 | Q20: 42918 | R20: 30409 | S20: 24167 | T20: 20099 | U20: 16348
A21: 64 | B21: 64 | D21: 53360.895 | E21: 37829.0528 | F21: 30061.4076 | G21: 24989.1054 | H21: 20331.7366 | K21: =Bolivia!D21 -> 46425 | L21: =Bolivia!E21 -> 32912 | M21: =Bolivia!F21 -> 26154 | N21: =Bolivia!G21 -> 21741 | O21: =Bolivia!H21 -> 17689 | Q21: 46425 | R21: 32912 | S21: 26154 | T21: 21741 | U21: 17689
A22: 65 | B22: 65 | D22: 69760.5342 | E22: 49329.9492 | F22: 38007.2098 | G22: 33334.8988 | H22: 28669.4842 | K22: =Bolivia!D22 -> 60693 | L22: =Bolivia!E22 -> 42918 | M22: =Bolivia!F22 -> 33067 | N22: =Bolivia!G22 -> 29002 | O22: =Bolivia!H22 -> 24943 | Q22: 60693 | R22: 42918 | S22: 33067 | T22: 29002 | U22: 24943
A23: 66 | B23: 66 | D23: 81033.8494 | E23: 57312.5322 | F23: 44163.3962 | G23: 38740.527 | H23: 33305.0144 | K23: =Bolivia!D23 -> 70501 | L23: =Bolivia!E23 -> 49863 | M23: =Bolivia!F23 -> 38423 | N23: =Bolivia!G23 -> 33705 | O23: =Bolivia!H23 -> 28976 | Q23: 70501 | R23: 49863 | S23: 38423 | T23: 33705 | U23: 28976
A24: 67 | B24: 67 | D24: 88511.8458 | E24: 62602.071 | F24: 48235.7204 | G24: 42300.2188 | H24: 36384.257 | K24: =Bolivia!D24 -> 77007 | L24: =Bolivia!E24 -> 54465 | M24: =Bolivia!F24 -> 41966 | N24: =Bolivia!G24 -> 36802 | O24: =Bolivia!H24 -> 31655 | Q24: 77007 | R24: 54465 | S24: 41966 | T24: 36802 | U24: 31655
A25: 68 | B25: 68 | D25: 98003.591 | E25: 69312.2682 | F25: 53413.7674 | G25: 46847.2452 | H25: 40281.8724 | K25: =Bolivia!D25 -> 85265 | L25: =Bolivia!E25 -> 60303 | M25: =Bolivia!F25 -> 46471 | N25: =Bolivia!G25 -> 40758 | O25: =Bolivia!H25 -> 35046 | Q25: 85265 | R25: 60303 | S25: 46471 | T25: 40758 | U25: 35046
A26: 69 | B26: 69 | D26: 107830.961 | E26: 76254.6442 | F26: 58772.2702 | G26: 47147.2386 | H26: 44327.7604 | K26: =Bolivia!D26 -> 93815 | L26: =Bolivia!E26 -> 66343 | M26: =Bolivia!F26 -> 51133 | N26: =Bolivia!G26 -> 41019 | O26: =Bolivia!H26 -> 38566 | Q26: 93815 | R26: 66343 | S26: 51133 | T26: 41019 | U26: 38566
A27: 70 | B27: 70 | D27: 132703.977 | E27: 92849.6814 | F27: 69182.386 | G27: 60061.897 | H27: 52147.1286 | K27: =Bolivia!D27 -> 115455 | L27: =Bolivia!E27 -> 80781 | M27: =Bolivia!F27 -> 60190 | N27: =Bolivia!G27 -> 52255 | O27: =Bolivia!H27 -> 45369 | Q27: 115455 | R27: 80781 | S27: 60190 | T27: 52255 | U27: 45369
A28: 71 | B28: 71 | D28: 137919.9542 | E28: 96503.624 | F28: 71896.1194 | G28: 62423.914 | H28: 54199.957 | K28: =Bolivia!D28 -> 119993 | L28: =Bolivia!E28 -> 83960 | M28: =Bolivia!F28 -> 62551 | N28: =Bolivia!G28 -> 54310 | O28: =Bolivia!H28 -> 47155 | Q28: 119993 | R28: 83960 | S28: 62551 | T28: 54310 | U28: 47155
A29: 72 | B29: 72 | D29: 141827.9142 | E29: 99227.702 | F29: 73927.1092 | G29: 64191.6912 | H29: 55728.659 | K29: =Bolivia!D29 -> 123393 | L29: =Bolivia!E29 -> 86330 | M29: =Bolivia!F29 -> 64318 | N29: =Bolivia!G29 -> 55848 | O29: =Bolivia!H29 -> 48485 | Q29: 123393 | R29: 86330 | S29: 64318 | T29: 55848 | U29: 48485
A30: 73 | B30: 73 | D30: 147034.6962 | E30: 102879.3458 | F30: 76641.992 | G30: 66551.4094 | H30: 57779.1886 | K30: =Bolivia!D30 -> 127923 | L30: =Bolivia!E30 -> 89507 | M30: =Bolivia!F30 -> 66680 | N30: =Bolivia!G30 -> 57901 | O30: =Bolivia!H30 -> 50269 | Q30: 127923 | R30: 89507 | S30: 66680 | T30: 57901 | U30: 50269
A31: 74 | B31: 74 | D31: 149638.0872 | E31: 104694.2484 | F31: 78010.9274 | G31: 67730.6938 | H31: 58801.0052 | K31: =Bolivia!D31 -> 130188 | L31: =Bolivia!E31 -> 91086 | M31: =Bolivia!F31 -> 67871 | N31: =Bolivia!G31 -> 58927 | O31: =Bolivia!H31 -> 51158 | Q31: 130188 | R31: 91086 | S31: 67871 | T31: 58927 | U31: 51158
A32: 75 | B32: 75+ | D32: 156151.737 | E32: 109251.6194 | F32: 81392.4622 | G32: 70680.0542 | H32: 61368.7648 | K32: =Bolivia!D32 -> 135855 | L32: =Bolivia!E32 -> 95051 | M32: =Bolivia!F32 -> 70813 | N32: =Bolivia!G32 -> 61493 | O32: =Bolivia!H32 -> 53392 | Q32: 135855 | R32: 95051 | S32: 70813 | T32: 61493 | U32: 53392
A33: 1 | B33: 1 Child | D33: 5382.6402 | E33: 4035.5434 | F33: 3326.3636 | G33: 2737.8708 | H33: 2134.4358 | K33: =Bolivia!D33 -> 4683 | L33: =Bolivia!E33 -> 3511 | M33: =Bolivia!F33 -> 2894 | N33: =Bolivia!G33 -> 2382 | O33: =Bolivia!H33 -> 1857 | Q33: =(K33)*$L$2 -> 4683 | R33: =(L33)*$L$2 -> 3511 | S33: 2894 | T33: 2382 | U33: 1857
A34: 2 | B34: 2 Children | D34: 8566.4782 | E34: 6434.3412 | F34: 5295.2858 | G34: 4332.0886 | H34: 3373.489 | K34: =Bolivia!D34 -> 7453 | L34: =Bolivia!E34 -> 5598 | M34: =Bolivia!F34 -> 4607 | N34: =Bolivia!G34 -> 3769 | O34: =Bolivia!H34 -> 2935 | Q34: =(K34)*$L$2 -> 7453 | R34: =(L34)*$L$2 -> 5598 | S34: =(M34)*$L$2 -> 4607 | T34: =(N34)*$L$2 -> 3769 | U34: =(O34)*$L$2 -> 2935
A35: 3 | B35: 3+ Children | D35: =Q35*$V$2 -> 12546.8504 | E35: 9426.2294 | F35: 7749.2548 | G35: 6356.182 | H35: 4951.6152 | K35: =Bolivia!D35 -> 10916 | L35: =Bolivia!E35 -> 8201 | M35: =Bolivia!F35 -> 6742 | N35: =Bolivia!G35 -> 5530 | O35: =Bolivia!H35 -> 4308 | Q35: 10916 | R35: 8201 | S35: 6742 | T35: 5530 | U35: 4308
A36: 1 | B36: Rider Comp. Maternidad | D36: =K36*$V$2 -> 0 | E36: =L36*$V$2 -> 0 | F36: 258.615 | G36: 258.615 | H36: 258.615 | K36: 0 | L36: 0 | M36: 225 | N36: 225 | O36: 225
A37: 1 | B37: Transplante de organos | D37: =K37*$V$2 -> 0 | E37: =L37*$V$2 -> 0 | F37: =M37*$V$2 -> 0 | G37: =N37*$V$2 -> 0 | H37: =O37*$V$2 -> 0 | K37: 0 | L37: 0 | M37: 0 | N37: 0 | O37: 0
D38: 0 | E38: 0 | F38: 0 | G38: 0 | H38: 0
A41: TARIFAS SEMESTRALES
A42: EDAD
D43: DW2 | E43: DW3 | F43: DW4 | G43: DW5 | H43: DW6
A44: 18 | B44: 18-24 | D44: =$G$2*D9 -> 8218.474362 | E44: 5530.154196 | F44: 3946.890178 | G44: 2728.526178 | H44: 2147.975732
A45: 25 | B45: 25-29 | D45: 8619.9253 | E45: 6111.923006 | F45: 4375.754306 | G45: 3023.979448 | H45: 2380.074074
A46: 30 | B46: 30-34 | D46: 8962.285584 | E46: 6556.016684 | F46: 4894.168188 | G46: 3623.414536 | H46: 2855.236034
A47: 35 | B47: 35-39 | D47: 10039.92854 | E47: 7337.59719 | F47: 5480.810454 | G47: 4062.025576 | H47: 3201.25141
A48: 40 | B48: 40-44 | D48: 12027.08023 | E48: 8296.449658 | F48: 6289.80415 | G48: 4611.50774 | H48: 3631.943084
A49: 45 | B49: 45-49 | D49: 13442.21001 | E49: 9271.140858 | F49: 7033.00619 | G49: 5153.070538 | H49: 4061.416394
A50: 50 | B50: 50-54 | D50: 17756.43694 | E50: 12553.41347 | F50: 9469.73419 | G50: 7516.696698 | H50: 5927.34086
A51: 55 | B51: 55-59 | D51: 18891.343 | E51: 13363.01635 | F51: 10078.91619 | G51: 7996.732114 | H51: 6308.688792
A52: 60 | B52: 60 | D52: 20580.60469 | E52: 14578.33444 | F52: 11593.34264 | G52: 9631.16742 | H52: 7836.517248
A53: 61 | B53: 61 | D53: 22459.93116 | E53: 15905.74202 | F53: 12647.2275 | G53: 10518.74559 | H53: 8554.742826
A54: 62 | B54: 62 | D54: =$G$2*D19 -> 24587.1947 | E54: 17423.82356 | F54: 13847.31604 | G54: 11510.49389 | H54: 9366.782432
A55: 63 | B55: 63 | D55: 26144.87308 | E55: 18524.61544 | F55: 14722.10139 | G55: 12243.94902 | H55: 9958.907336
A56: 64 | B56: 64 | D56: 28281.27435 | E56: 20049.39798 | F56: 15932.54603 | G56: 13244.22586 | H56: 10775.8204
A57: 65 | B57: 65 | D57: 36973.08313 | E57: 26144.87308 | F57: 20143.82119 | G57: 17667.49636 | H57: 15194.82663
A58: 66 | B58: 66 | D58: 42947.94018 | E58: 30375.64207 | F58: 23406.59999 | G58: 20532.47931 | H58: 17651.65763
A59: 67 | B59: 67 | D59: 46911.27827 | E59: 33179.09763 | F59: 25564.93181 | G59: 22419.11596 | H59: 19283.65621
A60: 68 | B60: 68 | D60: 51941.90323 | E60: 36735.50215 | F60: 28309.29672 | G60: 24829.03996 | H60: 21349.39237
A61: 69 | B61: 69 | D61: 57150.40933 | E61: 40414.96143 | F61: 31149.30321 | G61: 24988.03646 | H61: 23493.71301
A62: 70 | B62: 70 | D62: 70333.10781 | E62: 49210.33114 | F62: 36666.66458 | G62: 31832.80541 | H62: 27637.97816
A63: 71 | B63: 71 | D63: 73097.57573 | E63: 51146.92072 | F63: 38104.94328 | G63: 33084.67442 | H63: 28725.97721
A64: 72 | B64: 72 | D64: =$G$2*D29 -> 75168.79453 | E64: 52590.68206 | F64: 39181.36788 | G64: 34021.59634 | H64: 29536.18927
A65: 73 | B65: 73 | D65: 77928.38899 | E65: 54526.05327 | F65: 40620.25576 | G65: 35272.24698 | H65: 30622.96996
A66: 74 | B66: 74 | D66: 79308.18622 | E66: 55487.95165 | F66: 41345.79152 | G66: 35897.26771 | H66: 31164.53276
A67: 75 | B67: 75+ | D67: 82760.42061 | E67: 57903.35828 | F67: 43138.00497 | G67: 37460.42873 | H67: 32525.44534
A68: 1 | B68: 1 Child | D68: 2852.799306 | E68: 2138.838002 | F68: 1762.972708 | G68: 1451.071524 | H68: 1131.250974
A69: 2 | B69: 2 Children | D69: 4540.233446 | E69: 3410.200836 | F69: 2806.501474 | G69: 2296.006958 | H69: 1787.94917
A70: 3 | B70: 3+ Children | D70: 6649.830712 | E70: 4995.901582 | F70: 4107.105044 | G70: 3368.77646 | H70: 2624.356056
A71: 1 | B71: Rider Comp. Maternidad | D71: =+D36*$G$2 -> 0 | E71: 0 | F71: 137.06595 | G71: 137.06595 | H71: 137.06595
A72: 1 | B72: Transplante de organos | D72: 0 | E72: 0 | F72: 0 | G72: 0 | H72: 0
A78: BUPA DIAMOND CARE (LATIN AMERICA) | K78: ORIGINAL RATES | Q78: DISCOUNTS APPLIED
A79: TARIFAS ANUALES
A80: EDAD
C81: DW1 | D81: DW2 | E81: DW3 | F81: DW4 | G81: DW5 | H81: DW6
A82: 18 | B82: 18-24 | D82: =Q82*$V$2 -> 11291.7056 | E82: =R82*$V$2 -> 7582.5918 | F82: 5409.0764 | G82: 3725.2054 | H82: 2921.7748 | K82: =Bolivia!D79 -> 9824 | L82: =Bolivia!E79 -> 6597 | M82: =Bolivia!F79 -> 4706 | N82: =Bolivia!G79 -> 3241 | O82: =Bolivia!H79 -> 2542 | Q82: =(K82-50)*$L$2+50 -> 9824 | R82: =(L82-50)*$L$2+50 -> 6597 | S82: =(M82-50)*$L$2+50 -> 4706 | T82: =(N82-50)*$L$2+50 -> 3241 | U82: =(O82-50)*$L$2+50 -> 2542
A83: 25 | B83: 25-29 | D83: =Q83*$V$2 -> 11845.7164 | E83: =R83*$V$2 -> 8400.9646 | F83: =S83*$V$2 -> 5992.9716 | G83: =T83*$V$2 -> 4143.587 | H83: =U83*$V$2 -> 3248.2044 | K83: =Bolivia!D80 -> 10306 | L83: =Bolivia!E80 -> 7309 | M83: =Bolivia!F80 -> 5214 | N83: =Bolivia!G80 -> 3605 | O83: =Bolivia!H80 -> 2826 | Q83: =(K83-50)*$L$2+50 -> 10306 | R83: 7309 | S83: 5214 | T83: 3605 | U83: 2826
A84: 30 | B84: 30-34 | D84: 12329.6138 | E84: 8997.5032 | F84: 6723.99 | G84: 4970.0056 | H84: 3911.4082 | K84: =Bolivia!D81 -> 10727 | L84: =Bolivia!E81 -> 7828 | M84: =Bolivia!F81 -> 5850 | N84: =Bolivia!G81 -> 4324 | O84: =Bolivia!H81 -> 3403 | Q84: 10727 | R84: 7828 | S84: 5850 | T84: 4324 | U84: 3403
A85: 35 | B85: 35-39 | D85: 13806.5928 | E85: 10094.0308 | F85: 7535.4664 | G85: 5574.59 | H85: 4386.1104 | K85: =Bolivia!D82 -> 12012 | L85: =Bolivia!E82 -> 8782 | M85: =Bolivia!F82 -> 6556 | N85: =Bolivia!G82 -> 4850 | O85: =Bolivia!H82 -> 3816 | Q85: 12012 | R85: 8782 | S85: 6556 | T85: 4850 | U85: 3816
A86: 40 | B86: 40-44 | D86: 16549.0612 | E86: 11398.5998 | F86: 8644.6374 | G86: 6333.194 | H86: 4978.0514 | K86: =Bolivia!D83 -> 14398 | L86: =Bolivia!E83 -> 9917 | M86: =Bolivia!F83 -> 7521 | N86: =Bolivia!G83 -> 5510 | O86: =Bolivia!H83 -> 4331 | Q86: 14398 | R86: 9917 | S86: 7521 | T86: 5510 | U86: 4331
A87: 45 | B87: 45-49 | D87: 18506.4894 | E87: 12753.7424 | F87: 9672.201 | G87: 7087.2004 | H87: 5575.7394 | K87: =Bolivia!D84 -> 16101 | L87: =Bolivia!E84 -> 11096 | M87: =Bolivia!F84 -> 8415 | N87: =Bolivia!G84 -> 6166 | O87: =Bolivia!H84 -> 4851 | Q87: 16101 | R87: 11096 | S87: 8415 | T87: 6166 | U87: 4851
A88: 50 | B88: 50-54 | D88: 24462.6802 | E88: 17285.8266 | F88: 13041.0924 | G88: 10343.4506 | H88: 8149.246 | K88: =Bolivia!D85 -> 21283 | L88: =Bolivia!E85 -> 15039 | M88: =Bolivia!F85 -> 11346 | N88: =Bolivia!G85 -> 8999 | O88: =Bolivia!H85 -> 7090 | Q88: 21283 | R88: 15039 | S88: 11346 | T88: 8999 | U88: 7090
A89: 55 | B89: 55-59 | D89: 26017.8184 | E89: 18401.894 | F89: 13876.7062 | G89: 11012.4014 | H89: 8674.5218 | K89: =Bolivia!D86 -> 22636 | L89: =Bolivia!E86 -> 16010 | M89: =Bolivia!F86 -> 12073 | N89: =Bolivia!G86 -> 9581 | O89: =Bolivia!H86 -> 7547 | Q89: 22636 | R89: 16010 | S89: 12073 | T89: 9581 | U89: 7547
A90: 60 | B90: 60 | D90: 28354.5486 | E90: 20076.5698 | F90: 15967.4648 | G90: 13268.6736 | H90: 10782.5214 | K90: =Bolivia!D87 -> 24669 | L90: =Bolivia!E87 -> 17467 | M90: =Bolivia!F87 -> 13892 | N90: =Bolivia!G87 -> 11544 | O90: =Bolivia!H87 -> 9381 | Q90: 24669 | R90: 17467 | S90: 13892 | T90: 11544 | U90: 9381
A91: 61 | B91: 61 | D91: 30942.9974 | E91: 21905.2652 | F91: 17420.3064 | G91: 14482.44 | H91: 11765.2584 | K91: =Bolivia!D88 -> 26921 | L91: =Bolivia!E88 -> 19058 | M91: =Bolivia!F88 -> 15156 | N91: =Bolivia!G88 -> 12600 | O91: =Bolivia!H88 -> 10236 | Q91: 26921 | R91: 19058 | S91: 15156 | T91: 12600 | U91: 10236
A92: 62 | B92: 62 | D92: 33880.8638 | E92: 23996.0238 | F92: 19082.3388 | G92: 15861.72 | H92: 12895.1186 | K92: =Bolivia!D89 -> 29477 | L92: =Bolivia!E89 -> 20877 | M92: =Bolivia!F89 -> 16602 | N92: =Bolivia!G89 -> 13800 | O92: =Bolivia!H89 -> 11219 | Q92: 29477 | R92: 20877 | S92: 16602 | T92: 13800 | U92: 11219
A93: 63 | B93: 63 | D93: 36029.0924 | E93: 25510.933 | F93: 20301.8522 | G93: 16875.4908 | H93: 13703.1468 | K93: =Bolivia!D90 -> 31346 | L93: =Bolivia!E90 -> 22195 | M93: =Bolivia!F90 -> 17663 | N93: =Bolivia!G90 -> 14682 | O93: =Bolivia!H90 -> 11922 | Q93: 31346 | R93: 22195 | S93: 17663 | T93: 14682 | U93: 11922
A94: 64 | B94: 64 | D94: 38973.8552 | E94: 27610.8868 | F94: 21958.1376 | G94: 18246.725 | H94: 14836.4552 | K94: =Bolivia!D91 -> 33908 | L94: =Bolivia!E91 -> 24022 | M94: =Bolivia!F91 -> 19104 | N94: =Bolivia!G91 -> 15875 | O94: =Bolivia!H91 -> 12908 | Q94: 33908 | R94: 24022 | S94: 19104 | T94: 15875 | U94: 12908
A95: 65 | B95: 65 | D95: 50960.9478 | E95: 36031.3912 | F95: 27777.5498 | G95: 24350.039 | H95: 20950.1138 | K95: =Bolivia!D92 -> 44337 | L95: =Bolivia!E92 -> 31348 | M95: =Bolivia!F92 -> 24167 | N95: =Bolivia!G92 -> 21185 | O95: =Bolivia!H92 -> 18227 | Q95: 44337 | R95: 31348 | S95: 24167 | T95: 21185 | U95: 18227
A96: 66 | B96: 66 | D96: 59207.8928 | E96: 41865.7456 | F96: 32280.899 | G96: 28310.8714 | H96: 24332.798 | K96: =Bolivia!D93 -> 51512 | L96: =Bolivia!E93 -> 36424 | M96: =Bolivia!F93 -> 28085 | N96: =Bolivia!G93 -> 24631 | O96: =Bolivia!H93 -> 21170 | Q96: 51512 | R96: 36424 | S96: 28085 | T96: 24631 | U96: 21170
A97: 67 | B97: 67 | D97: 64685.9332 | E97: 45738.0742 | F97: 35268.1896 | G97: 30916.5612 | H97: 26589.0702 | K97: =Bolivia!D94 -> 56278 | L97: =Bolivia!E94 -> 39793 | M97: =Bolivia!F94 -> 30684 | N97: =Bolivia!G94 -> 26898 | O97: =Bolivia!H94 -> 23133 | Q97: 56278 | R97: 39793 | S97: 30684 | T97: 26898 | U97: 23133
A98: 68 | B98: 68 | D98: 71628.3092 | E98: 50642.564 | F98: 39052.0144 | G98: 34248.6718 | H98: 29444.1798 | K98: =Bolivia!D95 -> 62318 | L98: =Bolivia!E95 -> 44060 | M98: =Bolivia!F95 -> 33976 | N98: =Bolivia!G95 -> 29797 | O98: =Bolivia!H95 -> 25617 | Q98: 62318 | R98: 44060 | S98: 33976 | T98: 29797 | U98: 25617
A99: 69 | B99: 69 | D99: 78804.0134 | E99: 55720.6132 | F99: 42973.7672 | G99: 37694.573 | H99: 32403.8848 | K99: =Bolivia!D96 -> 68561 | L99: =Bolivia!E96 -> 48478 | M99: =Bolivia!F96 -> 37388 | N99: =Bolivia!G96 -> 32795 | O99: =Bolivia!H96 -> 28192 | Q99: 68561 | R99: 48478 | S99: 37388 | T99: 32795 | U99: 28192
A100: 70 | B100: 70 | D100: 96990.9696 | E100: 67869.7712 | F100: 50587.3928 | G100: 43920.8728 | H100: 38117.5522 | K100: =Bolivia!D97 -> 84384 | L100: =Bolivia!E97 -> 59048 | M100: =Bolivia!F97 -> 44012 | N100: =Bolivia!G97 -> 38212 | O100: =Bolivia!H97 -> 33163 | Q100: 84384 | R100: 59048 | S100: 44012 | T100: 38212 | U100: 33163
A101: 71 | B101: 71 | D101: 100804.6788 | E101: 70515.69 | F101: 52574.7054 | G101: 45643.8234 | H101: 39626.7144 | K101: =Bolivia!D98 -> 87702 | L101: =Bolivia!E98 -> 61350 | M101: =Bolivia!F98 -> 45741 | N101: =Bolivia!G98 -> 39711 | O101: =Bolivia!H98 -> 34476 | Q101: 87702 | R101: 61350 | S101: 45741 | T101: 39711 | U101: 34476
A102: 72 | B102: 72 | D102: 103656.3402 | E102: 72520.2436 | F102: 54063.1784 | G102: 46943.7948 | H102: 40733.5866 | K102: =Bolivia!D99 -> 90183 | L102: =Bolivia!E99 -> 63094 | M102: =Bolivia!F99 -> 47036 | N102: =Bolivia!G99 -> 40842 | O102: =Bolivia!H99 -> 35439 | Q102: 90183 | R102: 63094 | S102: 47036 | T102: 40842 | U102: 35439
A103: 73 | B103: 73 | D103: 107473.4976 | E103: 75186.8516 | F103: 56055.0886 | G103: 48663.2972 | H103: 42247.3464 | K103: =Bolivia!D100 -> 93504 | L103: =Bolivia!E100 -> 65414 | M103: =Bolivia!F100 -> 48769 | N103: =Bolivia!G100 -> 42338 | O103: =Bolivia!H100 -> 36756 | Q103: 93504 | R103: 65414 | S103: 48769 | T103: 42338 | U103: 36756
A104: 74 | B104: 74 | D104: 109382.651 | E104: 76527.052 | F104: 57042.4232 | G104: 49529.9448 | H104: 42993.307 | K104: =Bolivia!D101 -> 95165 | L104: =Bolivia!E101 -> 66580 | M104: =Bolivia!F101 -> 49628 | N104: =Bolivia!G101 -> 43092 | O104: =Bolivia!H101 -> 37405 | Q104: 95165 | R104: 66580 | S104: 49628 | T104: 43092 | U104: 37405
A105: 75 | B105: 75+ | D105: 114142.3164 | E105: 79845.3698 | F105: 59528.5754 | G105: 51685.0698 | H105: 44871.4266 | K105: =Bolivia!D102 -> 99306 | L105: =Bolivia!E102 -> 69467 | M105: =Bolivia!F102 -> 51791 | N105: =Bolivia!G102 -> 44967 | O105: =Bolivia!H102 -> 39039 | Q105: 99306 | R105: 69467 | S105: 51791 | T105: 44967 | U105: 39039
A106: 1 | B106: 1 Child | D106: 3940.1432 | E106: 2949.3604 | F106: 2436.728 | G106: 1991.9102 | H106: 1558.5864 | K106: =Bolivia!D103 -> 3428 | L106: =Bolivia!E103 -> 2566 | M106: =Bolivia!F103 -> 2120 | N106: =Bolivia!G103 -> 1733 | O106: =Bolivia!H103 -> 1356 | Q106: =(K106)*$L$2 -> 3428 | R106: =(L106)*$L$2 -> 2566 | S106: =(M106)*$L$2 -> 2120 | T106: =(N106)*$L$2 -> 1733 | U106: =(O106)*$L$2 -> 1356
A107: 2 | B107: 2 Children | D107: 6265.3794 | E107: 4697.5978 | F107: 3871.1792 | G107: 3174.6428 | H107: 2475.8076 | K107: =Bolivia!D104 -> 5451 | L107: =Bolivia!E104 -> 4087 | M107: =Bolivia!F104 -> 3368 | N107: =Bolivia!G104 -> 2762 | O107: =Bolivia!H104 -> 2154 | Q107: =(K107)*$L$2 -> 5451 | R107: 4087 | S107: 3368 | T107: 2762 | U107: 2154
A108: 3 | B108: 3+ Children | D108: 9179.1084 | E108: 6890.653 | F108: 5672.289 | G108: 4650.4724 | H108: 3627.5064 | K108: =Bolivia!D105 -> 7986 | L108: =Bolivia!E105 -> 5995 | M108: =Bolivia!F105 -> 4935 | N108: =Bolivia!G105 -> 4046 | O108: =Bolivia!H105 -> 3156 | Q108: 7986 | R108: 5995 | S108: 4935 | T108: 4046 | U108: 3156
A109: 1 | B109: Rider Comp. Maternidad | D109: =K109*$V$2 -> 0 | E109: =L109*$V$2 -> 0 | F109: 258.615 | G109: 258.615 | H109: 258.615 | K109: 0 | L109: 0 | M109: 225 | N109: 225 | O109: 225
A110: 1 | B110: Transplante de organos | D110: =K110*$V$2 -> 0 | E110: =L110*$V$2 -> 0 | F110: =M110*$V$2 -> 0 | G110: =N110*$V$2 -> 0 | H110: =O110*$V$2 -> 0 | K110: 0 | L110: 0 | M110: 0 | N110: 0 | O110: 0
D111: 0 | E111: 0 | F111: 0 | G111: 0 | H111: 0
A114: TARIFAS SEMESTRALES
A115: EDAD
D116: DW2 | E116: DW3 | F116: DW4 | G116: DW5 | H116: DW6
A117: 18 | B117: 18-24 | D117: =$G$2*D82 -> 5984.603968 | E117: 4018.773654 | F117: 2866.810492 | G117: 1974.358862 | H117: 1548.540644
A118: 25 | B118: 25-29 | D118: =$G$2*D83 -> 6278.229692 | E118: 4452.511238 | F118: 3176.274948 | G118: 2196.10111 | H118: 1721.548332
A119: 30 | B119: 30-34 | D119: =$G$2*D84 -> 6534.695314 | E119: 4768.676696 | F119: 3563.7147 | G119: 2634.102968 | H119: 2073.046346
A120: 35 | B120: 35-39 | D120: =$G$2*D85 -> 7317.494184 | E120: 5349.836324 | F120: 3993.797192 | G120: 2954.5327 | H120: 2324.638512
A121: 40 | B121: 40-44 | D121: =$G$2*D86 -> 8771.002436 | E121: 6041.257894 | F121: 4581.657822 | G121: 3356.59282 | H121: 2638.367242
A122: 45 | B122: 45-49 | D122: =$G$2*D87 -> 9808.439382 | E122: 6759.483472 | F122: 5126.26653 | G122: 3756.216212 | H122: 2955.141882
A123: 50 | B123: 50-54 | D123: =$G$2*D88 -> 12965.22051 | E123: 9161.488098 | F123: 6911.778972 | G123: 5482.028818 | H123: 4319.10038
A124: 55 | B124: 55-59 | D124: =$G$2*D89 -> 13789.44375 | E124: 9753.00382 | F124: 7354.654286 | G124: 5836.572742 | H124: 4597.496554
A125: 60 | B125: 60 | D125: =$G$2*D90 -> 15027.91076 | E125: 10640.58199 | F125: 8462.756344 | G125: 7032.397008 | H125: 5714.736342
A126: 61 | B126: 61 | D126: =$G$2*D91 -> 16399.78862 | E126: 11609.79056 | F126: 9232.762392 | G126: 7675.6932 | H126: 6235.586952
A127: 62 | B127: 62 | D127: =$G$2*D92 -> 17956.85781 | E127: 12717.89261 | F127: 10113.63956 | G127: 8406.7116 | H127: 6834.412858
A128: 63 | B128: 63 | D128: =$G$2*D93 -> 19095.41897 | E128: 13520.79449 | F128: 10759.98167 | G128: 8944.010124 | H128: 7262.667804
A129: 64 | B129: 64 | D129: =$G$2*D94 -> 20656.14326 | E129: 14633.77 | F129: 11637.81293 | G129: 9670.76425 | H129: 7863.321256
A130: 65 | B130: 65 | D130: =$G$2*D95 -> 27009.30233 | E130: 19096.63734 | F130: 14722.10139 | G130: 12905.52067 | H130: 11103.56031
A131: 66 | B131: 66 | D131: =$G$2*D96 -> 31380.18318 | E131: 22188.84517 | F131: 17108.87647 | G131: 15004.76184 | H131: 12896.38294
A132: 67 | B132: 67 | D132: =$G$2*D97 -> 34283.5446 | E132: 24241.17933 | F132: 18692.14049 | G132: 16385.77744 | H132: 14092.20721
A133: 68 | B133: 68 | D133: =$G$2*D98 -> 37963.00388 | E133: 26840.55892 | F133: 20697.56763 | G133: 18151.79605 | H133: 15605.41529
A134: 69 | B134: 69 | D134: =$G$2*D99 -> 41766.1271 | E134: 29531.925 | F134: 22776.09662 | G134: 19978.12369 | H134: 17174.05894
A135: 70 | B135: 70 | D135: =$G$2*D100 -> 51405.21389 | E135: 35970.97874 | F135: 26811.31818 | G135: 23278.06258 | H135: 20202.30267
A136: 71 | B136: 71 | D136: =$G$2*D101 -> 53426.47976 | E136: 37373.3157 | F136: 27864.59386 | G136: 24191.2264 | H136: 21002.15863
A137: 72 | B137: 72 | D137: =$G$2*D102 -> 54937.86031 | E137: 38435.72911 | F137: 28653.48455 | G137: 24880.21124 | H137: 21588.8009
A138: 73 | B138: 73 | D138: =$G$2*D103 -> 56960.95373 | E138: 39849.03135 | F138: 29709.19696 | G138: 25791.54752 | H138: 22391.09359
A139: 74 | B139: 74 | D139: =$G$2*D104 -> 57972.80503 | E139: 40559.33756 | F139: 30232.4843 | G139: 26250.87074 | H139: 22786.45271
A140: 75 | B140: 75+ | D140: =$G$2*D105 -> 60495.42769 | E140: 42318.04599 | F140: 31550.14496 | G140: 27393.08699 | H140: 23781.8561
A141: 1 | B141: 1 Child | D141: =$G$2*D106 -> 2088.275896 | E141: 1563.161012 | F141: 1291.46584 | G141: 1055.712406 | H141: 826.050792
A142: 2 | B142: 2 Children | D142: =$G$2*D107 -> 3320.651082 | E142: 2489.726834 | F142: 2051.724976 | G142: 1682.560684 | H142: 1312.178028
A143: 3 | B143: 3+ Children | D143: =$G$2*D108 -> 4864.927452 | E143: 3652.04609 | F143: 3006.31317 | G143: 2464.750372 | H143: 1922.578392
A144: 1 | B144: Rider Comp. Maternidad | D144: =+D109*$G$2 -> 0 | E144: 0 | F144: 137.06595 | G144: 137.06595 | H144: 137.06595
A145: 1 | B145: Transplante de organos | D145: =+D110*$G$2 -> 0 | E145: 0 | F145: 0 | G145: 0 | H145: 0
A151: DIAMOND (LATINAMERICA ONLY)
A152: TARIFAS ANUALES
A153: EDAD
C154: DL1 | D154: DL2 | E154: DL3 | F154: DL4 | G154: DL5 | H154: DL6
A155: 18 | B155: - 24
A156: 25 | B156: - 29
A157: 30 | B157: - 34
A158: 35 | B158: - 39
A159: 40 | B159: - 44
A160: 45 | B160: - 49
A161: 50 | B161: - 54
A162: 55 | B162: - 59
A163: 60
A164: 61
A165: 62
A166: 63
A167: 64
A168: 65
A169: 66
A170: 67
A171: 68
A172: 69
A173: 70
A174: 71
A175: 72
A176: 73
A177: 74
A178: 75 | B178: o más
A179: 1 | B179: Hijo
A180: 2 | B180: Hijos
A181: 3 | B181: Hijos o más
A182: 1 | B182: Rider Comp. Maternidad
A183: 1 | B183: Transplante de organos | C183: 0 | D183: 0 | E183: 0 | F183: 0 | G183: 0 | H183: 0
A185: TARIFAS SEMESTRALES
A186: EDAD
C187: DL1 | D187: DL2 | E187: DL3 | F187: DL4 | G187: DL5 | H187: DL6
A188: 18 | B188: - 24 | C188: =+C155*$G$2 -> 0 | D188: 0 | E188: 0 | F188: 0 | G188: 0 | H188: 0
A189: 25 | B189: - 29 | C189: 0 | D189: 0 | E189: 0 | F189: 0 | G189: 0 | H189: 0
A190: 30 | B190: - 34 | C190: 0 | D190: 0 | E190: 0 | F190: 0 | G190: 0 | H190: 0
A191: 35 | B191: - 39 | C191: 0 | D191: 0 | E191: 0 | F191: 0 | G191: 0 | H191: 0
A192: 40 | B192: - 44 | C192: 0 | D192: 0 | E192: 0 | F192: 0 | G192: 0 | H192: 0
A193: 45 | B193: - 49 | C193: 0 | D193: 0 | E193: 0 | F193: 0 | G193: 0 | H193: 0
A194: 50 | B194: - 54 | C194: 0 | D194: 0 | E194: 0 | F194: 0 | G194: 0 | H194: 0
A195: 55 | B195: - 59 | C195: 0 | D195: 0 | E195: 0 | F195: 0 | G195: 0 | H195: 0
A196: 60 | C196: 0 | D196: 0 | E196: 0 | F196: 0 | G196: 0 | H196: 0
A197: 61 | C197: 0 | D197: 0 | E197: 0 | F197: 0 | G197: 0 | H197: 0
A198: 62 | C198: =+C165*$G$2 -> 0 | D198: 0 | E198: 0 | F198: 0 | G198: 0 | H198: 0
A199: 63 | C199: 0 | D199: 0 | E199: 0 | F199: 0 | G199: 0 | H199: 0
A200: 64 | C200: 0 | D200: 0 | E200: 0 | F200: 0 | G200: 0 | H200: 0
A201: 65 | C201: 0 | D201: 0 | E201: 0 | F201: 0 | G201: 0 | H201: 0
A202: 66 | C202: 0 | D202: 0 | E202: 0 | F202: 0 | G202: 0 | H202: 0
A203: 67 | C203: 0 | D203: 0 | E203: 0 | F203: 0 | G203: 0 | H203: 0
A204: 68 | C204: 0 | D204: 0 | E204: 0 | F204: 0 | G204: 0 | H204: 0
A205: 69 | C205: 0 | D205: 0 | E205: 0 | F205: 0 | G205: 0 | H205: 0
A206: 70 | C206: 0 | D206: 0 | E206: 0 | F206: 0 | G206: 0 | H206: 0
A207: 71 | C207: 0 | D207: 0 | E207: 0 | F207: 0 | G207: 0 | H207: 0
A208: 72 | C208: =+C175*$G$2 -> 0 | D208: 0 | E208: 0 | F208: 0 | G208: 0 | H208: 0
A209: 73 | C209: 0 | D209: 0 | E209: 0 | F209: 0 | G209: 0 | H209: 0
A210: 74 | C210: 0 | D210: 0 | E210: 0 | F210: 0 | G210: 0 | H210: 0
A211: 75 | B211: o más | C211: 0 | D211: 0 | E211: 0 | F211: 0 | G211: 0 | H211: 0
A212: 1 | B212: Hijo | C212: 0 | D212: 0 | E212: 0 | F212: 0 | G212: 0 | H212: 0
A213: 2 | B213: Hijos | C213: 0 | D213: 0 | E213: 0 | F213: 0 | G213: 0 | H213: 0
A214: 3 | B214: Hijos o más | C214: 0 | D214: 0 | E214: 0 | F214: 0 | G214: 0 | H214: 0
A215: 1 | B215: Rider Comp. Maternidad | C215: 0 | D215: 0 | E215: 0 | F215: 0 | G215: 0 | H215: 0
A216: 1 | B216: Transplante de organos | C216: 0 | D216: 0 | E216: 0 | F216: 0 | G216: 0 | H216: 0
A221: BUPA COMPLETE CARE (MUNDIAL)
... 534 more rows

Sheet Bolivia (hidden)
K1: D1 | L1: D2 | M1: D3 | N1: D4 | O1: D5 | P1: D6
B2: REGIÓN | C2: ='INGRESO DE DATOS'!W14 -> Bolivia | E2: FACTOR SEMESTRAL : | G2: 0.53 | I2: NEW BUSINESS DISCUOUNTS | K2: ='INGRESO DE DATOS'!O42 -> 1 | L2: ='INGRESO DE DATOS'!P42 -> 1 | M2: ='INGRESO DE DATOS'!Q42 -> 1 | N2: ='INGRESO DE DATOS'!R42 -> 1 | O2: ='INGRESO DE DATOS'!S42 -> 1 | P2: ='INGRESO DE DATOS'!T42 -> 1
A5: BUPA DIAMOND CARE (MUNDIAL)
A6: TARIFAS ANUALES
A7: EDAD
C8: DW1 | D8: DW2 | E8: DW3 | F8: DW4 | G8: DW5 | H8: DW6
A9: 18 | B9: 18-24 | D9: 13491 | E9: 9078 | F9: 6479 | G9: 4479 | H9: 3526
A10: 25 | B10: 25-29 | D10: 14150 | E10: 10033 | F10: 7183 | G10: 4964 | H10: 3907
A11: 30 | B11: 30-34 | D11: 14712 | E11: 10762 | F11: 8034 | G11: 5948 | H11: 4687
A12: 35 | B12: 35-39 | D12: 16481 | E12: 12045 | F12: 8997 | G12: 6668 | H12: 5255
A13: 40 | B13: 40-44 | D13: 19743 | E13: 13619 | F13: 10325 | G13: 7570 | H13: 5962
A14: 45 | B14: 45-49 | D14: 22066 | E14: 15219 | F14: 11545 | G14: 8459 | H14: 6667
A15: 50 | B15: 50-54 | D15: 29148 | E15: 20607 | F15: 15545 | G15: 12339 | H15: 9730
A16: 55 | B16: 55-59 | D16: 31011 | E16: 21936 | F16: 16545 | G16: 13127 | H16: 10356
A17: 60 | B17: 60 | D17: 33784 | E17: 23931 | F17: 19031 | G17: 15810 | H17: 12864
A18: 61 | B18: 61 | D18: 36869 | E18: 26110 | F18: 20761 | G18: 17267 | H18: 14043
A19: 62 | B19: 62 | D19: 40361 | E19: 28602 | F19: 22731 | G19: 18895 | H19: 15376
A20: 63 | B20: 63 | D20: 42918 | E20: 30409 | F20: 24167 | G20: 20099 | H20: 16348
A21: 64 | B21: 64 | D21: 46425 | E21: 32912 | F21: 26154 | G21: 21741 | H21: 17689
A22: 65 | B22: 65 | D22: 60693 | E22: 42918 | F22: 33067 | G22: 29002 | H22: 24943
A23: 66 | B23: 66 | D23: 70501 | E23: 49863 | F23: 38423 | G23: 33705 | H23: 28976
A24: 67 | B24: 67 | D24: 77007 | E24: 54465 | F24: 41966 | G24: 36802 | H24: 31655
A25: 68 | B25: 68 | D25: 85265 | E25: 60303 | F25: 46471 | G25: 40758 | H25: 35046
A26: 69 | B26: 69 | D26: 93815 | E26: 66343 | F26: 51133 | G26: 41019 | H26: 38566
A27: 70 | B27: 70 | D27: 115455 | E27: 80781 | F27: 60190 | G27: 52255 | H27: 45369
A28: 71 | B28: 71 | D28: 119993 | E28: 83960 | F28: 62551 | G28: 54310 | H28: 47155
A29: 72 | B29: 72 | D29: 123393 | E29: 86330 | F29: 64318 | G29: 55848 | H29: 48485
A30: 73 | B30: 73 | D30: 127923 | E30: 89507 | F30: 66680 | G30: 57901 | H30: 50269
A31: 74 | B31: 74 | D31: 130188 | E31: 91086 | F31: 67871 | G31: 58927 | H31: 51158
A32: 75 | B32: 75+ | D32: 135855 | E32: 95051 | F32: 70813 | G32: 61493 | H32: 53392
A33: 1 | B33: 1 Child | D33: 4683 | E33: 3511 | F33: 2894 | G33: 2382 | H33: 1857
A34: 2 | B34: 2 Children | D34: 7453 | E34: 5598 | F34: 4607 | G34: 3769 | H34: 2935
A35: 3 | B35: 3+ Children | D35: 10916 | E35: 8201 | F35: 6742 | G35: 5530 | H35: 4308
A36: 1 | B36: Rider Comp. Maternidad | D36: 0 | E36: 0 | F36: 225 | G36: 225 | H36: 225
A37: 1 | B37: Transplante de organos | D37: 0 | E37: 0 | F37: 0 | G37: 0 | H37: 0
A41: TARIFAS SEMESTRALES
A42: EDAD
D43: DW2 | E43: DW3 | F43: DW4 | G43: DW5 | H43: DW6
A44: 18 | B44: 18-24 | D44: =$G$2*D9 -> 7150.23 | E44: 4811.34 | F44: 3433.87 | G44: 2373.87 | H44: 1868.78
A45: 25 | B45: 25-29 | D45: 7499.5 | E45: 5317.49 | F45: 3806.99 | G45: 2630.92 | H45: 2070.71
A46: 30 | B46: 30-34 | D46: 7797.36 | E46: 5703.86 | F46: 4258.02 | G46: 3152.44 | H46: 2484.11
A47: 35 | B47: 35-39 | D47: 8734.93 | E47: 6383.85 | F47: 4768.41 | G47: 3534.04 | H47: 2785.15
A48: 40 | B48: 40-44 | D48: 10463.79 | E48: 7218.07 | F48: 5472.25 | G48: 4012.1 | H48: 3159.86
A49: 45 | B49: 45-49 | D49: 11694.98 | E49: 8066.07 | F49: 6118.85 | G49: 4483.27 | H49: 3533.51
A50: 50 | B50: 50-54 | D50: 15448.44 | E50: 10921.71 | F50: 8238.85 | G50: 6539.67 | H50: 5156.9
A51: 55 | B51: 55-59 | D51: 16435.83 | E51: 11626.08 | F51: 8768.85 | G51: 6957.31 | H51: 5488.68
A52: 60 | B52: 60 | D52: 17905.52 | E52: 12683.43 | F52: 10086.43 | G52: 8379.3 | H52: 6817.92
A53: 61 | B53: 61 | D53: 19540.57 | E53: 13838.3 | F53: 11003.33 | G53: 9151.51 | H53: 7442.79
A54: 62 | B54: 62 | D54: =$G$2*D19 -> 21391.33 | E54: 15159.06 | F54: 12047.43 | G54: 10014.35 | H54: 8149.28
A55: 63 | B55: 63 | D55: 22746.54 | E55: 16116.77 | F55: 12808.51 | G55: 10652.47 | H55: 8664.44
A56: 64 | B56: 64 | D56: 24605.25 | E56: 17443.36 | F56: 13861.62 | G56: 11522.73 | H56: 9375.17
A57: 65 | B57: 65 | D57: 32167.29 | E57: 22746.54 | F57: 17525.51 | G57: 15371.06 | H57: 13219.79
A58: 66 | B58: 66 | D58: 37365.53 | E58: 26427.39 | F58: 20364.19 | G58: 17863.65 | H58: 15357.28
A59: 67 | B59: 67 | D59: 40813.71 | E59: 28866.45 | F59: 22241.98 | G59: 19505.06 | H59: 16777.15
A60: 68 | B60: 68 | D60: 45190.45 | E60: 31960.59 | F60: 24629.63 | G60: 21601.74 | H60: 18574.38
A61: 69 | B61: 69 | D61: 49721.95 | E61: 35161.79 | F61: 27100.49 | G61: 21740.07 | H61: 20439.98
A62: 70 | B62: 70 | D62: 61191.15 | E62: 42813.93 | F62: 31900.7 | G62: 27695.15 | H62: 24045.57
A63: 71 | B63: 71 | D63: 63596.29 | E63: 44498.8 | F63: 33152.03 | G63: 28784.3 | H63: 24992.15
A64: 72 | B64: 72 | D64: =$G$2*D29 -> 65398.29 | E64: 45754.9 | F64: 34088.54 | G64: 29599.44 | H64: 25697.05
A65: 73 | B65: 73 | D65: 67799.19 | E65: 47438.71 | F65: 35340.4 | G65: 30687.53 | H65: 26642.57
A66: 74 | B66: 74 | D66: 68999.64 | E66: 48275.58 | F66: 35971.63 | G66: 31231.31 | H66: 27113.74
A67: 75 | B67: 75+ | D67: 72003.15 | E67: 50377.03 | F67: 37530.89 | G67: 32591.29 | H67: 28297.76
A68: 1 | B68: 1 Child | D68: 2481.99 | E68: 1860.83 | F68: 1533.82 | G68: 1262.46 | H68: 984.21
A69: 2 | B69: 2 Children | D69: 3950.09 | E69: 2966.94 | F69: 2441.71 | G69: 1997.57 | H69: 1555.55
A70: 3 | B70: 3+ Children | D70: 5785.48 | E70: 4346.53 | F70: 3573.26 | G70: 2930.9 | H70: 2283.24
A71: 1 | B71: Rider Comp. Maternidad | D71: =+D36*$G$2 -> 0 | E71: 0 | F71: 119.25 | G71: 119.25 | H71: 119.25
A72: 1 | B72: Transplante de organos | D72: 0 | E72: 0 | F72: 0 | G72: 0 | H72: 0
A75: BUPA DIAMOND CARE (LATIN AMERICA)
A76: TARIFAS ANUALES
A77: EDAD
C78: DW1 | D78: DW2 | E78: DW3 | F78: DW4 | G78: DW5 | H78: DW6
A79: 18 | B79: 18-24 | D79: 9824 | E79: 6597 | F79: 4706 | G79: 3241 | H79: 2542
A80: 25 | B80: 25-29 | D80: 10306 | E80: 7309 | F80: 5214 | G80: 3605 | H80: 2826
A81: 30 | B81: 30-34 | D81: 10727 | E81: 7828 | F81: 5850 | G81: 4324 | H81: 3403
A82: 35 | B82: 35-39 | D82: 12012 | E82: 8782 | F82: 6556 | G82: 4850 | H82: 3816
A83: 40 | B83: 40-44 | D83: 14398 | E83: 9917 | F83: 7521 | G83: 5510 | H83: 4331
A84: 45 | B84: 45-49 | D84: 16101 | E84: 11096 | F84: 8415 | G84: 6166 | H84: 4851
A85: 50 | B85: 50-54 | D85: 21283 | E85: 15039 | F85: 11346 | G85: 8999 | H85: 7090
A86: 55 | B86: 55-59 | D86: 22636 | E86: 16010 | F86: 12073 | G86: 9581 | H86: 7547
A87: 60 | B87: 60 | D87: 24669 | E87: 17467 | F87: 13892 | G87: 11544 | H87: 9381
A88: 61 | B88: 61 | D88: 26921 | E88: 19058 | F88: 15156 | G88: 12600 | H88: 10236
A89: 62 | B89: 62 | D89: 29477 | E89: 20877 | F89: 16602 | G89: 13800 | H89: 11219
A90: 63 | B90: 63 | D90: 31346 | E90: 22195 | F90: 17663 | G90: 14682 | H90: 11922
A91: 64 | B91: 64 | D91: 33908 | E91: 24022 | F91: 19104 | G91: 15875 | H91: 12908
A92: 65 | B92: 65 | D92: 44337 | E92: 31348 | F92: 24167 | G92: 21185 | H92: 18227
A93: 66 | B93: 66 | D93: 51512 | E93: 36424 | F93: 28085 | G93: 24631 | H93: 21170
A94: 67 | B94: 67 | D94: 56278 | E94: 39793 | F94: 30684 | G94: 26898 | H94: 23133
A95: 68 | B95: 68 | D95: 62318 | E95: 44060 | F95: 33976 | G95: 29797 | H95: 25617
A96: 69 | B96: 69 | D96: 68561 | E96: 48478 | F96: 37388 | G96: 32795 | H96: 28192
A97: 70 | B97: 70 | D97: 84384 | E97: 59048 | F97: 44012 | G97: 38212 | H97: 33163
A98: 71 | B98: 71 | D98: 87702 | E98: 61350 | F98: 45741 | G98: 39711 | H98: 34476
A99: 72 | B99: 72 | D99: 90183 | E99: 63094 | F99: 47036 | G99: 40842 | H99: 35439
A100: 73 | B100: 73 | D100: 93504 | E100: 65414 | F100: 48769 | G100: 42338 | H100: 36756
A101: 74 | B101: 74 | D101: 95165 | E101: 66580 | F101: 49628 | G101: 43092 | H101: 37405
A102: 75 | B102: 75+ | D102: 99306 | E102: 69467 | F102: 51791 | G102: 44967 | H102: 39039
A103: 1 | B103: 1 Child | D103: 3428 | E103: 2566 | F103: 2120 | G103: 1733 | H103: 1356
A104: 2 | B104: 2 Children | D104: 5451 | E104: 4087 | F104: 3368 | G104: 2762 | H104: 2154
A105: 3 | B105: 3+ Children | D105: 7986 | E105: 5995 | F105: 4935 | G105: 4046 | H105: 3156
A106: 1 | B106: Rider Comp. Maternidad | D106: 0 | E106: 0 | F106: 225 | G106: 225 | H106: 225
A107: 1 | B107: Transplante de organos | D107: 0 | E107: 0 | F107: 0 | G107: 0 | H107: 0
A114: DIAMOND (LATINAMERICA ONLY)
A115: TARIFAS ANUALES
A116: EDAD
C117: DL1 | D117: DL2 | E117: DL3 | F117: DL4 | G117: DL5 | H117: DL6
A118: 18 | B118: - 24
A119: 25 | B119: - 29
A120: 30 | B120: - 34
A121: 35 | B121: - 39
A122: 40 | B122: - 44
A123: 45 | B123: - 49
A124: 50 | B124: - 54
A125: 55 | B125: - 59
A126: 60
A127: 61
A128: 62
A129: 63
A130: 64
A131: 65
A132: 66
A133: 67
A134: 68
A135: 69
A136: 70
A137: 71
A138: 72
A139: 73
A140: 74
A141: 75 | B141: o más
A142: 1 | B142: Hijo
A143: 2 | B143: Hijos
A144: 3 | B144: Hijos o más
A145: 1 | B145: Rider Comp. Maternidad
A146: 1 | B146: Transplante de organos | C146: 0 | D146: 0 | E146: 0 | F146: 0 | G146: 0 | H146: 0
A148: TARIFAS SEMESTRALES
A149: EDAD
C150: DL1 | D150: DL2 | E150: DL3 | F150: DL4 | G150: DL5 | H150: DL6
A151: 18 | B151: - 24 | C151: =+C118*$G$2 -> 0 | D151: 0 | E151: 0 | F151: 0 | G151: 0 | H151: 0
A152: 25 | B152: - 29 | C152: 0 | D152: 0 | E152: 0 | F152: 0 | G152: 0 | H152: 0
A153: 30 | B153: - 34 | C153: 0 | D153: 0 | E153: 0 | F153: 0 | G153: 0 | H153: 0
A154: 35 | B154: - 39 | C154: 0 | D154: 0 | E154: 0 | F154: 0 | G154: 0 | H154: 0
A155: 40 | B155: - 44 | C155: 0 | D155: 0 | E155: 0 | F155: 0 | G155: 0 | H155: 0
A156: 45 | B156: - 49 | C156: 0 | D156: 0 | E156: 0 | F156: 0 | G156: 0 | H156: 0
A157: 50 | B157: - 54 | C157: 0 | D157: 0 | E157: 0 | F157: 0 | G157: 0 | H157: 0
A158: 55 | B158: - 59 | C158: 0 | D158: 0 | E158: 0 | F158: 0 | G158: 0 | H158: 0
A159: 60 | C159: 0 | D159: 0 | E159: 0 | F159: 0 | G159: 0 | H159: 0
A160: 61 | C160: 0 | D160: 0 | E160: 0 | F160: 0 | G160: 0 | H160: 0
A161: 62 | C161: =+C128*$G$2 -> 0 | D161: 0 | E161: 0 | F161: 0 | G161: 0 | H161: 0
A162: 63 | C162: 0 | D162: 0 | E162: 0 | F162: 0 | G162: 0 | H162: 0
A163: 64 | C163: 0 | D163: 0 | E163: 0 | F163: 0 | G163: 0 | H163: 0
A164: 65 | C164: 0 | D164: 0 | E164: 0 | F164: 0 | G164: 0 | H164: 0
A165: 66 | C165: 0 | D165: 0 | E165: 0 | F165: 0 | G165: 0 | H165: 0
A166: 67 | C166: 0 | D166: 0 | E166: 0 | F166: 0 | G166: 0 | H166: 0
A167: 68 | C167: 0 | D167: 0 | E167: 0 | F167: 0 | G167: 0 | H167: 0
A168: 69 | C168: 0 | D168: 0 | E168: 0 | F168: 0 | G168: 0 | H168: 0
A169: 70 | C169: 0 | D169: 0 | E169: 0 | F169: 0 | G169: 0 | H169: 0
A170: 71 | C170: 0 | D170: 0 | E170: 0 | F170: 0 | G170: 0 | H170: 0
A171: 72 | C171: =+C138*$G$2 -> 0 | D171: 0 | E171: 0 | F171: 0 | G171: 0 | H171: 0
A172: 73 | C172: 0 | D172: 0 | E172: 0 | F172: 0 | G172: 0 | H172: 0
A173: 74 | C173: 0 | D173: 0 | E173: 0 | F173: 0 | G173: 0 | H173: 0
A174: 75 | B174: o más | C174: 0 | D174: 0 | E174: 0 | F174: 0 | G174: 0 | H174: 0
A175: 1 | B175: Hijo | C175: 0 | D175: 0 | E175: 0 | F175: 0 | G175: 0 | H175: 0
A176: 2 | B176: Hijos | C176: 0 | D176: 0 | E176: 0 | F176: 0 | G176: 0 | H176: 0
A177: 3 | B177: Hijos o más | C177: 0 | D177: 0 | E177: 0 | F177: 0 | G177: 0 | H177: 0
A178: 1 | B178: Rider Comp. Maternidad | C178: 0 | D178: 0 | E178: 0 | F178: 0 | G178: 0 | H178: 0
A179: 1 | B179: Transplante de organos | C179: 0 | D179: 0 | E179: 0 | F179: 0 | G179: 0 | H179: 0
A184: BUPA COMPLETE CARE (MUNDIAL)
A185: TARIFAS ANUALES
A186: EDAD
C187: CW1 | D187: CW2 | E187: CW3 | F187: CW4 | G187: CW5 | H187: CW6
A188: 18 | B188: 18-24 | D188: 11397 | E188: 7981 | F188: 5660 | G188: 3913 | H188: 2989
A189: 25 | B189: 25-29 | D189: 11960 | E189: 8831 | F189: 6260 | G189: 4333 | H189: 3309
A190: 30 | B190: 30-34 | D190: 12482 | E190: 9447 | F190: 7034 | G190: 5232 | H190: 4001
A191: 35 | B191: 35-39 | D191: 13979 | E191: 10573 | F191: 7878 | G191: 5865 | H191: 4483
A192: 40 | B192: 40-44 | D192: 16712 | E192: 11976 | F192: 9046 | G192: 6690 | H192: 5106
A193: 45 | B193: 45-49 | D193: 18671 | E193: 13388 | F193: 10110 | G193: 7471 | H193: 5712
A194: 50 | B194: 50-54 | D194: 25191 | E194: 18216 | F194: 13701 | G194: 10993 | H194: 8413
A195: 55 | B195: 55-59 | D195: 26804 | E195: 19375 | F195: 14578 | G195: 11701 | H195: 8945
A196: 60 | B196: 60 | D196: 29173 | E196: 21049 | F196: 16589 | G196: 13915 | H196: 11168
A197: 61 | B197: 61 | D197: 31846 | E197: 22949 | F197: 18103 | G197: 15183 | H197: 12187
A198: 62 | B198: 62 | D198: 34854 | E198: 25138 | F198: 19817 | G198: 16621 | H198: 13350
A199: 63 | B199: 63 | D199: 37053 | E199: 26724 | F199: 21066 | G199: 17672 | H199: 14202
A200: 64 | B200: 64 | D200: 40079 | E200: 28915 | F200: 22791 | G200: 19113 | H200: 15362
A201: 65 | B201: 65 | D201: 52382 | E201: 37702 | F201: 28810 | G201: 25482 | H201: 21645
A202: 66 | B202: 66 | D202: 60862 | E202: 43801 | F202: 33469 | G202: 29608 | H202: 25148
A203: 67 | B203: 67 | D203: 66465 | E203: 47834 | F203: 36555 | G203: 32343 | H203: 27467
A204: 68 | B204: 68 | D204: 73594 | E204: 52969 | F204: 40482 | G204: 35817 | H204: 30408
A205: 69 | B205: 69 | D205: 80964 | E205: 58270 | F205: 44538 | G205: 39398 | H205: 33463
A206: 70 | B206: 70 | D206: 99638 | E206: 70948 | F206: 52412 | G206: 45908 | H206: 39348
A207: 71 | B207: 71 | D207: 103542 | E207: 73731 | F207: 54467 | G207: 47706 | H207: 40890
A208: 72 | B208: 72 | D208: 106475 | E208: 75820 | F208: 56016 | G208: 49054 | H208: 42050
A209: 73 | B209: 73 | D209: 110393 | E209: 78605 | F209: 58076 | G209: 50853 | H209: 43599
A210: 74 | B210: 74 | D210: 112343 | E210: 79988 | F210: 59103 | G210: 51757 | H210: 44369
A211: 75 | B211: 75+ | D211: 117226 | E211: 83471 | F211: 61667 | G211: 54007 | H211: 46298
A212: 1 | B212: 1 Child | D212: 3948 | E212: 2944 | F212: 2304 | G212: 1884 | H212: 1402
A213: 2 | B213: 2 Children | D213: 6280 | E213: 4673 | F213: 3652 | G213: 2998 | H213: 2226
A214: 3 | B214: 3+ Children | D214: 9196 | E214: 6842 | F214: 5349 | G214: 4391 | H214: 3255
A215: 1 | B215: Rider Comp. Maternidad | D215: 0 | E215: 0 | F215: 225 | G215: 225 | H215: 225
A216: 1 | B216: Transplante de organos | D216: 0 | E216: 0 | F216: 0 | G216: 0 | H216: 0
A220: TARIFAS SEMESTRALES
A221: EDAD
... 434 more rows
